{"text_format":"1","workbook":"xlsx","n_sheets":14,"sheets":["Start","M01","M02","M03","M04","M05","M06","M07","M08","M09","M10","M11","M12","Dati"],"not_rendered":{"charts":0,"images":13,"macros":1,"external_links":1,"defined_names":4,"comments":0,"pivot_tables":0},"unopened":[],"bounds":{"document_bytes":16777216,"sheet_cells":100000,"rows_first":2000,"rows_last":500,"rows_between":2000,"halvings":0,"cell_chars":16384,"cell_head_chars":4096},"cells_cut":0,"cells_raw":0,"read":"whole","date_system":"1900"}

{"sheet":"Start","index":0,"n_rows":22,"n_cols":15,"rows_kept":22,"cut":false,"hidden":false,"merged":[]}
[{"$f":"TODAY()","v":"2018-06-21"}]
[null,"Gestione di INCASSI e PAGAMENTI",null,null,null,null,null,null,"Riepilogo dell' Anno",null,null,null,"Riepilogo dell'Anno"]
[null,null,null,null,null,null,null,null,"Tipo","Incassi","Pagamenti",null,"Modo","Incassi","Pagamenti"]
[null,null,null,null,null,null,null,null,{"$f":"Dati!J2","v":"Stipendio"},{"$f":"'M01'!J11+'M02'!J11+'M03'!J11+'M04'!J11+'M05'!J11+'M06'!J11+'M07'!J11+'M08'!J11+'M09'!J11+'M10'!J11+'M11'!J11+'M12'!J11","v":0},{"$f":"'M01'!K11+'M02'!K11+'M03'!K11+'M04'!K11+'M05'!K11+'M06'!K11+'M07'!K11+'M08'!K11+'M09'!K11+'M10'!K11+'M11'!K11+'M12'!K11","v":0},null,{"$f":"Dati!H2","v":"Bancomat"},{"$f":"'M01'!J3+'M02'!J3+'M03'!J3+'M04'!J3+'M05'!J3+'M06'!J3+'M07'!J3+'M08'!J3+'M09'!J3+'M10'!J3+'M11'!J3+'M12'!J3","v":0},{"$f":"'M01'!K3+'M02'!K3+'M03'!K3+'M04'!K3+'M05'!K3+'M06'!K3+'M07'!K3+'M08'!K3+'M09'!K3+'M10'!K3+'M11'!K3+'M12'!K3","v":0}]
[null,"Anno valorizzazione",null,2018,null,null,null,null,{"$f":"Dati!J3","v":"Altre Entrate"},{"$f":"'M01'!J12+'M02'!J12+'M03'!J12+'M04'!J12+'M05'!J12+'M06'!J12+'M07'!J12+'M08'!J12+'M09'!J12+'M10'!J12+'M11'!J12+'M12'!J12","v":0},{"$f":"'M01'!K12+'M02'!K12+'M03'!K12+'M04'!K12+'M05'!K12+'M06'!K12+'M07'!K12+'M08'!K12+'M09'!K12+'M10'!K12+'M11'!K12+'M12'!K12","v":0},null,{"$f":"Dati!H3","v":"Contanti"},{"$f":"'M01'!J4+'M02'!J4+'M03'!J4+'M04'!J4+'M05'!J4+'M06'!J4+'M07'!J4+'M08'!J4+'M09'!J4+'M10'!J4+'M11'!J4+'M12'!J4","v":0},{"$f":"'M01'!K4+'M02'!K4+'M03'!K4+'M04'!K4+'M05'!K4+'M06'!K4+'M07'!K4+'M08'!K4+'M09'!K4+'M10'!K4+'M11'!K4+'M12'!K4","v":0}]
[null,null,null,null,null,null,null,null,{"$f":"Dati!J4","v":"Tasse"},{"$f":"'M01'!J13+'M02'!J13+'M03'!J13+'M04'!J13+'M05'!J13+'M06'!J13+'M07'!J13+'M08'!J13+'M09'!J13+'M10'!J13+'M11'!J13+'M12'!J13","v":0},{"$f":"'M01'!K13+'M02'!K13+'M03'!K13+'M04'!K13+'M05'!K13+'M06'!K13+'M07'!K13+'M08'!K13+'M09'!K13+'M10'!K13+'M11'!K13+'M12'!K13","v":0},null,{"$f":"Dati!H4","v":"CartaCredito"},{"$f":"'M01'!J5+'M02'!J5+'M03'!J5+'M04'!J5+'M05'!J5+'M06'!J5+'M07'!J5+'M08'!J5+'M09'!J5+'M10'!J5+'M11'!J5+'M12'!J5","v":0},{"$f":"'M01'!K5+'M02'!K5+'M03'!K5+'M04'!K5+'M05'!K5+'M06'!K5+'M07'!K5+'M08'!K5+'M09'!K5+'M10'!K5+'M11'!K5+'M12'!K5","v":0}]
[null,null,null,null,null,null,null,null,{"$f":"Dati!J5","v":"Spese Casa"},{"$f":"'M01'!J14+'M02'!J14+'M03'!J14+'M04'!J14+'M05'!J14+'M06'!J14+'M07'!J14+'M08'!J14+'M09'!J14+'M10'!J14+'M11'!J14+'M12'!J14","v":0},{"$f":"'M01'!K14+'M02'!K14+'M03'!K14+'M04'!K14+'M05'!K14+'M06'!K14+'M07'!K14+'M08'!K14+'M09'!K14+'M10'!K14+'M11'!K14+'M12'!K14","v":0},null,{"$f":"Dati!H5","v":"Bonifico"},{"$f":"'M01'!J6+'M02'!J6+'M03'!J6+'M04'!J6+'M05'!J6+'M06'!J6+'M07'!J6+'M08'!J6+'M09'!J6+'M10'!J6+'M11'!J6+'M12'!J6","v":0},{"$f":"'M01'!K6+'M02'!K6+'M03'!K6+'M04'!K6+'M05'!K6+'M06'!K6+'M07'!K6+'M08'!K6+'M09'!K6+'M10'!K6+'M11'!K6+'M12'!K6","v":0}]
[null,null,"Seleziona il Mese",null,"Giugno",null,null,null,{"$f":"Dati!J6","v":"Luce e Gas"},{"$f":"'M01'!J15+'M02'!J15+'M03'!J15+'M04'!J15+'M05'!J15+'M06'!J15+'M07'!J15+'M08'!J15+'M09'!J15+'M10'!J15+'M11'!J15+'M12'!J15","v":0},{"$f":"'M01'!K15+'M02'!K15+'M03'!K15+'M04'!K15+'M05'!K15+'M06'!K15+'M07'!K15+'M08'!K15+'M09'!K15+'M10'!K15+'M11'!K15+'M12'!K15","v":0},null,{"$f":"Dati!H6","v":"Vario"},{"$f":"'M01'!J7+'M02'!J7+'M03'!J7+'M04'!J7+'M05'!J7+'M06'!J7+'M07'!J7+'M08'!J7+'M09'!J7+'M10'!J7+'M11'!J7+'M12'!J7","v":0},{"$f":"'M01'!K7+'M02'!K7+'M03'!K7+'M04'!K7+'M05'!K7+'M06'!K7+'M07'!K7+'M08'!K7+'M09'!K7+'M10'!K7+'M11'!K7+'M12'!K7","v":0}]
[null,null,null,null,null,null,null,null,{"$f":"Dati!J7","v":"Supermercato"},{"$f":"'M01'!J16+'M02'!J16+'M03'!J16+'M04'!J16+'M05'!J16+'M06'!J16+'M07'!J16+'M08'!J16+'M09'!J16+'M10'!J16+'M11'!J16+'M12'!J16","v":0},{"$f":"'M01'!K16+'M02'!K16+'M03'!K16+'M04'!K16+'M05'!K16+'M06'!K16+'M07'!K16+'M08'!K16+'M09'!K16+'M10'!K16+'M11'!K16+'M12'!K16","v":0},null,"TOTALE",{"$f":"SUM(N4:N8)","v":0},{"$f":"SUM(O4:O8)","v":0}]
[null,null,null,null,null,null,null,null,{"$f":"Dati!J8","v":"Telefonia"},{"$f":"'M01'!J17+'M02'!J17+'M03'!J17+'M04'!J17+'M05'!J17+'M06'!J17+'M07'!J17+'M08'!J17+'M09'!J17+'M10'!J17+'M11'!J17+'M12'!J17","v":0},{"$f":"'M01'!K17+'M02'!K17+'M03'!K17+'M04'!K17+'M05'!K17+'M06'!K17+'M07'!K17+'M08'!K17+'M09'!K17+'M10'!K17+'M11'!K17+'M12'!K17","v":0}]
[null,null,null,null,null,null,null,null,{"$f":"Dati!J9","v":"Elettronica"},{"$f":"'M01'!J18+'M02'!J18+'M03'!J18+'M04'!J18+'M05'!J18+'M06'!J18+'M07'!J18+'M08'!J18+'M09'!J18+'M10'!J18+'M11'!J18+'M12'!J18","v":0},{"$f":"'M01'!K18+'M02'!K18+'M03'!K18+'M04'!K18+'M05'!K18+'M06'!K18+'M07'!K18+'M08'!K18+'M09'!K18+'M10'!K18+'M11'!K18+'M12'!K18","v":0}]
[null,null,null,null,null,null,null,null,{"$f":"Dati!J10","v":"Auto Moto"},{"$f":"'M01'!J19+'M02'!J19+'M03'!J19+'M04'!J19+'M05'!J19+'M06'!J19+'M07'!J19+'M08'!J19+'M09'!J19+'M10'!J19+'M11'!J19+'M12'!J19","v":0},{"$f":"'M01'!K19+'M02'!K19+'M03'!K19+'M04'!K19+'M05'!K19+'M06'!K19+'M07'!K19+'M08'!K19+'M09'!K19+'M10'!K19+'M11'!K19+'M12'!K19","v":0}]
[null,null,null,null,null,null,null,null,{"$f":"Dati!J11","v":"Assicurazioni"},{"$f":"'M01'!J20+'M02'!J20+'M03'!J20+'M04'!J20+'M05'!J20+'M06'!J20+'M07'!J20+'M08'!J20+'M09'!J20+'M10'!J20+'M11'!J20+'M12'!J20","v":0},{"$f":"'M01'!K20+'M02'!K20+'M03'!K20+'M04'!K20+'M05'!K20+'M06'!K20+'M07'!K20+'M08'!K20+'M09'!K20+'M10'!K20+'M11'!K20+'M12'!K20","v":0}]
[null,null,null,null,null,null,null,null,{"$f":"Dati!J12","v":"Manutenzione"},{"$f":"'M01'!J21+'M02'!J21+'M03'!J21+'M04'!J21+'M05'!J21+'M06'!J21+'M07'!J21+'M08'!J21+'M09'!J21+'M10'!J21+'M11'!J21+'M12'!J21","v":0},{"$f":"'M01'!K21+'M02'!K21+'M03'!K21+'M04'!K21+'M05'!K21+'M06'!K21+'M07'!K21+'M08'!K21+'M09'!K21+'M10'!K21+'M11'!K21+'M12'!K21","v":0}]
[null,null,null,null,null,null,null,null,{"$f":"Dati!J13","v":"Medicinali"},{"$f":"'M01'!J22+'M02'!J22+'M03'!J22+'M04'!J22+'M05'!J22+'M06'!J22+'M07'!J22+'M08'!J22+'M09'!J22+'M10'!J22+'M11'!J22+'M12'!J22","v":0},{"$f":"'M01'!K22+'M02'!K22+'M03'!K22+'M04'!K22+'M05'!K22+'M06'!K22+'M07'!K22+'M08'!K22+'M09'!K22+'M10'!K22+'M11'!K22+'M12'!K22","v":0}]
["Selezionare il mese da utilizzare",null,null,null,null,null,null,null,{"$f":"Dati!J14","v":"Ristoranti"},{"$f":"'M01'!J23+'M02'!J23+'M03'!J23+'M04'!J23+'M05'!J23+'M06'!J23+'M07'!J23+'M08'!J23+'M09'!J23+'M10'!J23+'M11'!J23+'M12'!J23","v":0},{"$f":"'M01'!K23+'M02'!K23+'M03'!K23+'M04'!K23+'M05'!K23+'M06'!K23+'M07'!K23+'M08'!K23+'M09'!K23+'M10'!K23+'M11'!K23+'M12'!K23","v":0},null,"ATTENZIONE ! ! ! !"]
[null,"e premere il tasto OK",null,null,null,null,null,null,{"$f":"Dati!J15","v":"Abbigliamento"},{"$f":"'M01'!J24+'M02'!J24+'M03'!J24+'M04'!J24+'M05'!J24+'M06'!J24+'M07'!J24+'M08'!J24+'M09'!J24+'M10'!J24+'M11'!J24+'M12'!J24","v":0},{"$f":"'M01'!K24+'M02'!K24+'M03'!K24+'M04'!K24+'M05'!K24+'M06'!K24+'M07'!K24+'M08'!K24+'M09'!K24+'M10'!K24+'M11'!K24+'M12'!K24","v":0},null,null,"se si cambia l'anno"]
[null,null,null,null,null,null,null,null,{"$f":"Dati!J16","v":"Istruzione"},{"$f":"'M01'!J25+'M02'!J25+'M03'!J25+'M04'!J25+'M05'!J25+'M06'!J25+'M07'!J25+'M08'!J25+'M09'!J25+'M10'!J25+'M11'!J25+'M12'!J25","v":0},{"$f":"'M01'!K25+'M02'!K25+'M03'!K25+'M04'!K25+'M05'!K25+'M06'!K25+'M07'!K25+'M08'!K25+'M09'!K25+'M10'!K25+'M11'!K25+'M12'!K25","v":0},null,null,"il sistema azzera tutti i dati"]
[null,"Il sistema apre il foglio del mese selezionato",null,null,null,null,null,null,{"$f":"Dati!J17","v":"Divertimento"},{"$f":"'M01'!J26+'M02'!J26+'M03'!J26+'M04'!J26+'M05'!J26+'M06'!J26+'M07'!J26+'M08'!J26+'M09'!J26+'M10'!J26+'M11'!J26+'M12'!J26","v":0},{"$f":"'M01'!K26+'M02'!K26+'M03'!K26+'M04'!K26+'M05'!K26+'M06'!K26+'M07'!K26+'M08'!K26+'M09'!K26+'M10'!K26+'M11'!K26+'M12'!K26","v":0}]
[null,null,null,null,null,null,null,null,{"$f":"Dati!J18","v":"Vacanze"},{"$f":"'M01'!J27+'M02'!J27+'M03'!J27+'M04'!J27+'M05'!J27+'M06'!J27+'M07'!J27+'M08'!J27+'M09'!J27+'M10'!J27+'M11'!J27+'M12'!J27","v":0},{"$f":"'M01'!K27+'M02'!K27+'M03'!K27+'M04'!K27+'M05'!K27+'M06'!K27+'M07'!K27+'M08'!K27+'M09'!K27+'M10'!K27+'M11'!K27+'M12'!K27","v":0}]
[null,null,null,null,null,null,null,null,{"$f":"Dati!J19","v":"Spese Varie"},{"$f":"'M01'!J28+'M02'!J28+'M03'!J28+'M04'!J28+'M05'!J28+'M06'!J28+'M07'!J28+'M08'!J28+'M09'!J28+'M10'!J28+'M11'!J28+'M12'!J28","v":0},{"$f":"'M01'!K28+'M02'!K28+'M03'!K28+'M04'!K28+'M05'!K28+'M06'!K28+'M07'!K28+'M08'!K28+'M09'!K28+'M10'!K28+'M11'!K28+'M12'!K28","v":0}]
[null,null,null,null,null,null,null,null,"TOTALE",{"$f":"SUM(J4:J21)","v":0},{"$f":"SUM(K4:K21)","v":0}]

{"sheet":"M01","index":1,"n_rows":61,"n_cols":14,"rows_kept":61,"cut":false,"hidden":false,"merged":[[2,0,3,0],[2,2,3,2],[2,3,3,3],[2,1,3,1],[2,4,3,4]]}
[null,{"$f":"Dati!L2","v":"Operazioni di incasso e pagamento effettuate nel mese di:"},null,{"$f":"Dati!B2","v":"Gennaio"}]
[null,null,null,null,null,null,null,null,{"$f":"Dati!L11","v":"Sommario"},{"$f":"Dati!L13","v":"Incassi"},{"$f":"Dati!L14","v":"Pagamenti"},null,{"$f":"Dati!O4","v":"Info"}]
[{"$f":"Dati!L5","v":"Giorno"},{"$f":"Dati!L6","v":"Tipo Operazione"},{"$f":"Dati!L7","v":"Descrizione Operazione"},{"$f":"Dati!L8","v":"Metodo"},{"$f":"Dati!L9","v":"Importo"},null,null,null,{"$f":"Dati!H2","v":"Bancomat"},{"$f":"SUMIFS($E$5:$E$61,$D$5:$D$61,I3,$F$5:$F$61,\"=D\")","v":0},{"$f":"SUMIFS($E$5:$E$61,$D$5:$D$61,I3,$F$5:$F$61,\"=H\")","v":0}]
[null,null,null,null,null,null,null,null,{"$f":"Dati!H3","v":"Contanti"},{"$f":"SUMIFS($E$5:$E$61,$D$5:$D$61,I4,$F$5:$F$61,\"=D\")","v":0},{"$f":"SUMIFS($E$5:$E$61,$D$5:$D$61,I4,$F$5:$F$61,\"=H\")","v":0},null,{"$f":"Dati!O6","v":"Indicare il giorno dell'operazione"}]
[null,null,null,null,null,{"$f":"IF(LEFT(B5,3)=\"Sti\",\"D\",IF(LEFT(B5,3)=\"Alt\",\"D\",\"H\"))","v":"H"},null,null,{"$f":"Dati!H4","v":"CartaCredito"},0,0,null,{"$f":"Dati!O7","v":"Selezionare il Tipo Operazione"}]
[null,null,null,null,null,{"$f":"IF(LEFT(B6,3)=\"Sti\",\"D\",IF(LEFT(B6,3)=\"Alt\",\"D\",\"H\"))","v":"H"},null,null,{"$f":"Dati!H5","v":"Bonifico"},0,0,null,{"$f":"Dati!O8","v":"Valorizzare la descrizione"}]
[null,null,null,null,null,{"$f":"IF(LEFT(B7,3)=\"Sti\",\"D\",IF(LEFT(B7,3)=\"Alt\",\"D\",\"H\"))","v":"H"},null,null,{"$f":"Dati!H6","v":"Vario"},{"$f":"SUMIFS($E$5:$E$61,$D$5:$D$61,I7,$F$5:$F$61,\"=D\")","v":0},{"$f":"SUMIFS($E$5:$E$61,$D$5:$D$61,I7,$F$5:$F$61,\"=H\")","v":0},null,{"$f":"Dati!O9","v":"Selezionare il Metodo"}]
[null,null,null,null,null,{"$f":"IF(LEFT(B8,3)=\"Sti\",\"D\",IF(LEFT(B8,3)=\"Alt\",\"D\",\"H\"))","v":"H"},null,null,"TOTALE",{"$f":"J3+J4+J5+J6+J7","v":0},{"$f":"K3+K4+K5+K6+K7","v":0},null,{"$f":"Dati!O10","v":"Valorizzare l'importo"}]
[null,null,null,null,null,"H",null,null,null,null,null,null,{"$f":"Dati!O11","v":"Calcolo di Incasso o Pagamento"}]
[null,null,null,null,null,"H",null,null,{"$f":"Dati!L12","v":"Dettaglio"},{"$f":"Dati!L13","v":"Incassi"},{"$f":"Dati!L14","v":"Pagamenti"},null,{"$f":"Dati!O12","v":"in maniera automatica"}]
[null,null,null,null,null,"H",null,null,{"$f":"Dati!J2","v":"Stipendio"},{"$f":"SUMIFS(E$5:E$61,B$5:B$61,I11,$F$5:$F$61,\"=D\")","v":0},{"$f":"SUMIFS(E$5:E$61,B$5:B$61,I11,$F$5:$F$61,\"=H\")","v":0}]
[null,null,null,null,null,"H",null,null,{"$f":"Dati!J3","v":"Altre Entrate"},{"$f":"SUMIFS(E$5:E$61,B$5:B$61,I12,$F$5:$F$61,\"=D\")","v":0},0,null,{"$f":"Dati!O13","v":"Aggiornamento automatico di"}]
[null,null,null,null,null,"H",null,null,{"$f":"Dati!J4","v":"Tasse"},0,{"$f":"SUMIFS(E$5:E$61,B$5:B$61,I13,$F$5:$F$61,\"=H\")","v":0},null,{"$f":"Dati!O14","v":"Sommario e Dettaglio"}]
[null,null,null,null,null,"H",null,null,{"$f":"Dati!J5","v":"Spese Casa"},0,{"$f":"SUMIFS(E$5:E$61,B$5:B$61,I14,$F$5:$F$61,\"=H\")","v":0}]
[null,null,null,null,null,"H",null,null,{"$f":"Dati!J6","v":"Luce e Gas"},0,0,null,{"$f":"Dati!O15","v":"Al termine delle operazioni,"}]
[null,null,null,null,null,"H",null,null,{"$f":"Dati!J7","v":"Supermercato"},0,0,null,{"$f":"Dati!O16","v":"premere"},{"$f":"Dati!P16","v":"TORNARE"}]
[null,null,null,null,null,"H",null,null,{"$f":"Dati!J8","v":"Telefonia"},0,0,null,{"$f":"Dati!O17","v":"e si ritorna al foglio Start"}]
[null,null,null,null,null,"H",null,null,{"$f":"Dati!J9","v":"Elettronica"},0,0]
[null,null,null,null,null,"H",null,null,{"$f":"Dati!J10","v":"Auto Moto"},0,0]
[null,null,null,null,null,"H",null,null,{"$f":"Dati!J11","v":"Assicurazioni"},0,0]
[null,null,null,null,null,"H",null,null,{"$f":"Dati!J12","v":"Manutenzione"},0,0]
[null,null,null,null,null,"H",null,null,{"$f":"Dati!J13","v":"Medicinali"},0,0]
[null,null,null,null,null,"H",null,null,{"$f":"Dati!J14","v":"Ristoranti"},0,0]
[null,null,null,null,null,"H",null,null,{"$f":"Dati!J15","v":"Abbigliamento"},0,0]
[null,null,null,null,null,"H",null,null,{"$f":"Dati!J16","v":"Istruzione"},0,0]
[null,null,null,null,null,"H",null,null,{"$f":"Dati!J17","v":"Divertimento"},0,0]
[null,null,null,null,null,"H",null,null,{"$f":"Dati!J18","v":"Vacanze"},0,0]
[null,null,null,null,null,"H",null,null,{"$f":"Dati!J19","v":"Spese Varie"},0,0]
[null,null,null,null,null,"H",null,null,"TOTALE",{"$f":"J11+J12","v":0},{"$f":"SUM(K13:K28)","v":0}]
[null,null,null,null,null,"H"]
[null,null,null,null,null,"H"]
[null,null,null,null,null,"H"]
[null,null,null,null,null,"H"]
[null,null,null,null,null,"H"]
[null,null,null,null,null,"H"]
[null,null,null,null,null,"H"]
[null,null,null,null,null,"H"]
[null,null,null,null,null,"H"]
[null,null,null,null,null,"H"]
[null,null,null,null,null,"H"]
[null,null,null,null,null,"H"]
[null,null,null,null,null,"H"]
[null,null,null,null,null,"H"]
[null,null,null,null,null,"H"]
[null,null,null,null,null,"H"]
[null,null,null,null,null,"H"]
[null,null,null,null,null,"H"]
[null,null,null,null,null,"H"]
[null,null,null,null,null,"H"]
[null,null,null,null,null,"H"]
[null,null,null,null,null,"H"]
[null,null,null,null,null,"H"]
[null,null,null,null,null,"H"]
[null,null,null,null,null,"H"]
[null,null,null,null,null,"H"]
[null,null,null,null,null,"H"]
[null,null,null,null,null,"H"]
[null,null,null,null,null,"H"]
[null,null,null,null,null,"H"]
[null,null,null,null,null,"H"]
[null,null,null,null,null,"H"]

{"sheet":"M02","index":2,"n_rows":61,"n_cols":14,"rows_kept":61,"cut":false,"hidden":false,"merged":[[2,0,3,0],[2,2,3,2],[2,3,3,3],[2,1,3,1],[2,4,3,4]]}
[null,{"$f":"Dati!L2","v":"Operazioni di incasso e pagamento effettuate nel mese di:"},null,{"$f":"Dati!B3","v":"Febbraio"}]
[null,null,null,null,null,null,null,null,{"$f":"Dati!L11","v":"Sommario"},{"$f":"Dati!L13","v":"Incassi"},{"$f":"Dati!L14","v":"Pagamenti"},null,{"$f":"Dati!O4","v":"Info"}]
[{"$f":"Dati!L5","v":"Giorno"},{"$f":"Dati!L6","v":"Tipo Operazione"},{"$f":"Dati!L7","v":"Descrizione Operazione"},{"$f":"Dati!L8","v":"Metodo"},{"$f":"Dati!L9","v":"Importo"},null,null,null,{"$f":"Dati!H2","v":"Bancomat"},{"$f":"SUMIFS($E$5:$E$61,$D$5:$D$61,I3,$F$5:$F$61,\"=D\")","v":0},{"$f":"SUMIFS($E$5:$E$61,$D$5:$D$61,I3,$F$5:$F$61,\"=H\")","v":0}]
[null,null,null,null,null,null,null,null,{"$f":"Dati!H3","v":"Contanti"},{"$f":"SUMIFS($E$5:$E$61,$D$5:$D$61,I4,$F$5:$F$61,\"=D\")","v":0},{"$f":"SUMIFS($E$5:$E$61,$D$5:$D$61,I4,$F$5:$F$61,\"=H\")","v":0},null,{"$f":"Dati!O6","v":"Indicare il giorno dell'operazione"}]
[null,null,null,null,null,{"$f":"IF(LEFT(B5,3)=\"Sti\",\"D\",IF(LEFT(B5,3)=\"Alt\",\"D\",\"H\"))","v":"H"},null,null,{"$f":"Dati!H4","v":"CartaCredito"},0,0,null,{"$f":"Dati!O7","v":"Selezionare il Tipo Operazione"}]
[null,null,null,null,null,{"$f":"IF(LEFT(B6,3)=\"Sti\",\"D\",IF(LEFT(B6,3)=\"Alt\",\"D\",\"H\"))","v":"H"},null,null,{"$f":"Dati!H5","v":"Bonifico"},0,0,null,{"$f":"Dati!O8","v":"Valorizzare la descrizione"}]
[null,null,null,null,null,{"$f":"IF(LEFT(B7,3)=\"Sti\",\"D\",IF(LEFT(B7,3)=\"Alt\",\"D\",\"H\"))","v":"H"},null,null,{"$f":"Dati!H6","v":"Vario"},0,0,null,{"$f":"Dati!O9","v":"Selezionare il Metodo"}]
[null,null,null,null,null,{"$f":"IF(LEFT(B8,3)=\"Sti\",\"D\",IF(LEFT(B8,3)=\"Alt\",\"D\",\"H\"))","v":"H"},null,null,"TOTAL",{"$f":"J3+J4+J5+J6+J7","v":0},{"$f":"K3+K4+K5+K6+K7","v":0},null,{"$f":"Dati!O10","v":"Valorizzare l'importo"}]
[null,null,null,null,null,"H",null,null,null,null,null,null,{"$f":"Dati!O11","v":"Calcolo di Incasso o Pagamento"}]
[null,null,null,null,null,"H",null,null,{"$f":"Dati!L12","v":"Dettaglio"},{"$f":"Dati!L13","v":"Incassi"},{"$f":"Dati!L14","v":"Pagamenti"},null,{"$f":"Dati!O12","v":"in maniera automatica"}]
[null,null,null,null,null,"H",null,null,{"$f":"Dati!J2","v":"Stipendio"},{"$f":"SUMIFS(E$5:E$61,B$5:B$61,I11,$F$5:$F$61,\"=D\")","v":0},{"$f":"SUMIFS(E$5:E$61,B$5:B$61,I11,$F$5:$F$61,\"=H\")","v":0}]
[null,null,null,null,null,"H",null,null,{"$f":"Dati!J3","v":"Altre Entrate"},{"$f":"SUMIFS(E$5:E$61,B$5:B$61,I12,$F$5:$F$61,\"=D\")","v":0},0,null,{"$f":"Dati!O13","v":"Aggiornamento automatico di"}]
[null,null,null,null,null,"H",null,null,{"$f":"Dati!J4","v":"Tasse"},0,{"$f":"SUMIFS(E$5:E$61,B$5:B$61,I13,$F$5:$F$61,\"=H\")","v":0},null,{"$f":"Dati!O14","v":"Sommario e Dettaglio"}]
[null,null,null,null,null,"H",null,null,{"$f":"Dati!J5","v":"Spese Casa"},0,{"$f":"SUMIFS(E$5:E$61,B$5:B$61,I14,$F$5:$F$61,\"=H\")","v":0}]
[null,null,null,null,null,"H",null,null,{"$f":"Dati!J6","v":"Luce e Gas"},0,0,null,{"$f":"Dati!O15","v":"Al termine delle operazioni,"}]
[null,null,null,null,null,"H",null,null,{"$f":"Dati!J7","v":"Supermercato"},0,0,null,{"$f":"Dati!O16","v":"premere"},{"$f":"Dati!P16","v":"TORNARE"}]
[null,null,null,null,null,"H",null,null,{"$f":"Dati!J8","v":"Telefonia"},0,0,null,{"$f":"Dati!O17","v":"e si ritorna al foglio Start"}]
[null,null,null,null,null,"H",null,null,{"$f":"Dati!J9","v":"Elettronica"},0,0]
[null,null,null,null,null,"H",null,null,{"$f":"Dati!J10","v":"Auto Moto"},0,0]
[null,null,null,null,null,"H",null,null,{"$f":"Dati!J11","v":"Assicurazioni"},0,0]
[null,null,null,null,null,"H",null,null,{"$f":"Dati!J12","v":"Manutenzione"},0,0]
[null,null,null,null,null,"H",null,null,{"$f":"Dati!J13","v":"Medicinali"},0,0]
[null,null,null,null,null,"H",null,null,{"$f":"Dati!J14","v":"Ristoranti"},0,0]
[null,null,null,null,null,"H",null,null,{"$f":"Dati!J15","v":"Abbigliamento"},0,0]
[null,null,null,null,null,"H",null,null,{"$f":"Dati!J16","v":"Istruzione"},0,0]
[null,null,null,null,null,"H",null,null,{"$f":"Dati!J17","v":"Divertimento"},0,0]
[null,null,null,null,null,"H",null,null,{"$f":"Dati!J18","v":"Vacanze"},0,0]
[null,null,null,null,null,"H",null,null,{"$f":"Dati!J19","v":"Spese Varie"},0,0]
[null,null,null,null,null,"H",null,null,"TOTAL",{"$f":"J11+J12","v":0},{"$f":"SUM(K13:K28)","v":0}]
[null,null,null,null,null,"H"]
[null,null,null,null,null,"H"]
[null,null,null,null,null,"H"]
[null,null,null,null,null,"H"]
[null,null,null,null,null,"H"]
[null,null,null,null,null,"H"]
[null,null,null,null,null,"H"]
[null,null,null,null,null,"H"]
[null,null,null,null,null,"H"]
[null,null,null,null,null,"H"]
[null,null,null,null,null,"H"]
[null,null,null,null,null,"H"]
[null,null,null,null,null,"H"]
[null,null,null,null,null,"H"]
[null,null,null,null,null,"H"]
[null,null,null,null,null,"H"]
[null,null,null,null,null,"H"]
[null,null,null,null,null,"H"]
[null,null,null,null,null,"H"]
[null,null,null,null,null,"H"]
[null,null,null,null,null,"H"]
[null,null,null,null,null,"H"]
[null,null,null,null,null,"H"]
[null,null,null,null,null,"H"]
[null,null,null,null,null,"H"]
[null,null,null,null,null,"H"]
[null,null,null,null,null,"H"]
[null,null,null,null,null,"H"]
[null,null,null,null,null,"H"]
[null,null,null,null,null,"H"]
[null,null,null,null,null,"H"]
[null,null,null,null,null,"H"]

{"sheet":"M03","index":3,"n_rows":61,"n_cols":14,"rows_kept":61,"cut":false,"hidden":false,"merged":[[2,0,3,0],[2,2,3,2],[2,3,3,3],[2,1,3,1],[2,4,3,4]]}
[null,{"$f":"Dati!L2","v":"Operazioni di incasso e pagamento effettuate nel mese di:"},null,{"$f":"Dati!B4","v":"Marzo"}]
[null,null,null,null,null,null,null,null,{"$f":"Dati!L11","v":"Sommario"},{"$f":"Dati!L13","v":"Incassi"},{"$f":"Dati!L14","v":"Pagamenti"},null,{"$f":"Dati!O4","v":"Info"}]
[{"$f":"Dati!L5","v":"Giorno"},{"$f":"Dati!L6","v":"Tipo Operazione"},{"$f":"Dati!L7","v":"Descrizione Operazione"},{"$f":"Dati!L8","v":"Metodo"},{"$f":"Dati!L9","v":"Importo"},null,null,null,{"$f":"Dati!H2","v":"Bancomat"},{"$f":"SUMIFS($E$5:$E$61,$D$5:$D$61,I3,$F$5:$F$61,\"=D\")","v":0},{"$f":"SUMIFS($E$5:$E$61,$D$5:$D$61,I3,$F$5:$F$61,\"=H\")","v":0}]
[null,null,null,null,null,null,null,null,{"$f":"Dati!H3","v":"Contanti"},{"$f":"SUMIFS($E$5:$E$61,$D$5:$D$61,I4,$F$5:$F$61,\"=D\")","v":0},{"$f":"SUMIFS($E$5:$E$61,$D$5:$D$61,I4,$F$5:$F$61,\"=H\")","v":0},null,{"$f":"Dati!O6","v":"Indicare il giorno dell'operazione"}]
[null,null,null,null,null,{"$f":"IF(LEFT(B5,3)=\"Sti\",\"D\",IF(LEFT(B5,3)=\"Alt\",\"D\",\"H\"))","v":"H"},null,null,{"$f":"Dati!H4","v":"CartaCredito"},0,0,null,{"$f":"Dati!O7","v":"Selezionare il Tipo Operazione"}]
[null,null,null,null,null,{"$f":"IF(LEFT(B6,3)=\"Sti\",\"D\",IF(LEFT(B6,3)=\"Alt\",\"D\",\"H\"))","v":"H"},null,null,{"$f":"Dati!H5","v":"Bonifico"},0,0,null,{"$f":"Dati!O8","v":"Valorizzare la descrizione"}]
[null,null,null,null,null,{"$f":"IF(LEFT(B7,3)=\"Sti\",\"D\",IF(LEFT(B7,3)=\"Alt\",\"D\",\"H\"))","v":"H"},null,null,{"$f":"Dati!H6","v":"Vario"},0,0,null,{"$f":"Dati!O9","v":"Selezionare il Metodo"}]
[null,null,null,null,null,{"$f":"IF(LEFT(B8,3)=\"Sti\",\"D\",IF(LEFT(B8,3)=\"Alt\",\"D\",\"H\"))","v":"H"},null,null,"TOTAL",{"$f":"J3+J4+J5+J6+J7","v":0},{"$f":"K3+K4+K5+K6+K7","v":0},null,{"$f":"Dati!O10","v":"Valorizzare l'importo"}]
[null,null,null,null,null,"H",null,null,null,null,null,null,{"$f":"Dati!O11","v":"Calcolo di Incasso o Pagamento"}]
[null,null,null,null,null,"H",null,null,{"$f":"Dati!L12","v":"Dettaglio"},{"$f":"Dati!L13","v":"Incassi"},{"$f":"Dati!L14","v":"Pagamenti"},null,{"$f":"Dati!O12","v":"in maniera automatica"}]
[null,null,null,null,null,"H",null,null,{"$f":"Dati!J2","v":"Stipendio"},{"$f":"SUMIFS(E$5:E$61,B$5:B$61,I11,$F$5:$F$61,\"=D\")","v":0},{"$f":"SUMIFS(E$5:E$61,B$5:B$61,I11,$F$5:$F$61,\"=H\")","v":0}]
[null,null,null,null,null,"H",null,null,{"$f":"Dati!J3","v":"Altre Entrate"},{"$f":"SUMIFS(E$5:E$61,B$5:B$61,I12,$F$5:$F$61,\"=D\")","v":0},0,null,{"$f":"Dati!O13","v":"Aggiornamento automatico di"}]
[null,null,null,null,null,"H",null,null,{"$f":"Dati!J4","v":"Tasse"},0,{"$f":"SUMIFS(E$5:E$61,B$5:B$61,I13,$F$5:$F$61,\"=H\")","v":0},null,{"$f":"Dati!O14","v":"Sommario e Dettaglio"}]
[null,null,null,null,null,"H",null,null,{"$f":"Dati!J5","v":"Spese Casa"},0,{"$f":"SUMIFS(E$5:E$61,B$5:B$61,I14,$F$5:$F$61,\"=H\")","v":0}]
[null,null,null,null,null,"H",null,null,{"$f":"Dati!J6","v":"Luce e Gas"},0,0,null,{"$f":"Dati!O15","v":"Al termine delle operazioni,"}]
[null,null,null,null,null,"H",null,null,{"$f":"Dati!J7","v":"Supermercato"},0,0,null,{"$f":"Dati!O16","v":"premere"},{"$f":"Dati!P16","v":"TORNARE"}]
[null,null,null,null,null,"H",null,null,{"$f":"Dati!J8","v":"Telefonia"},0,0,null,{"$f":"Dati!O17","v":"e si ritorna al foglio Start"}]
[null,null,null,null,null,"H",null,null,{"$f":"Dati!J9","v":"Elettronica"},0,0]
[null,null,null,null,null,"H",null,null,{"$f":"Dati!J10","v":"Auto Moto"},0,0]
[null,null,null,null,null,"H",null,null,{"$f":"Dati!J11","v":"Assicurazioni"},0,0]
[null,null,null,null,null,"H",null,null,{"$f":"Dati!J12","v":"Manutenzione"},0,0]
[null,null,null,null,null,"H",null,null,{"$f":"Dati!J13","v":"Medicinali"},0,0]
[null,null,null,null,null,"H",null,null,{"$f":"Dati!J14","v":"Ristoranti"},0,0]
[null,null,null,null,null,"H",null,null,{"$f":"Dati!J15","v":"Abbigliamento"},0,0]
[null,null,null,null,null,"H",null,null,{"$f":"Dati!J16","v":"Istruzione"},0,0]
[null,null,null,null,null,"H",null,null,{"$f":"Dati!J17","v":"Divertimento"},0,0]
[null,null,null,null,null,"H",null,null,{"$f":"Dati!J18","v":"Vacanze"},0,0]
[null,null,null,null,null,"H",null,null,{"$f":"Dati!J19","v":"Spese Varie"},0,0]
[null,null,null,null,null,"H",null,null,"TOTAL",{"$f":"J11+J12","v":0},{"$f":"SUM(K13:K28)","v":0}]
[null,null,null,null,null,"H"]
[null,null,null,null,null,"H"]
[null,null,null,null,null,"H"]
[null,null,null,null,null,"H"]
[null,null,null,null,null,"H"]
[null,null,null,null,null,"H"]
[null,null,null,null,null,"H"]
[null,null,null,null,null,"H"]
[null,null,null,null,null,"H"]
[null,null,null,null,null,"H"]
[null,null,null,null,null,"H"]
[null,null,null,null,null,"H"]
[null,null,null,null,null,"H"]
[null,null,null,null,null,"H"]
[null,null,null,null,null,"H"]
[null,null,null,null,null,"H"]
[null,null,null,null,null,"H"]
[null,null,null,null,null,"H"]
[null,null,null,null,null,"H"]
[null,null,null,null,null,"H"]
[null,null,null,null,null,"H"]
[null,null,null,null,null,"H"]
[null,null,null,null,null,"H"]
[null,null,null,null,null,"H"]
[null,null,null,null,null,"H"]
[null,null,null,null,null,"H"]
[null,null,null,null,null,"H"]
[null,null,null,null,null,"H"]
[null,null,null,null,null,"H"]
[null,null,null,null,null,"H"]
[null,null,null,null,null,"H"]
[null,null,null,null,null,"H"]

{"sheet":"M04","index":4,"n_rows":61,"n_cols":14,"rows_kept":61,"cut":false,"hidden":false,"merged":[[2,0,3,0],[2,2,3,2],[2,3,3,3],[2,1,3,1],[2,4,3,4]]}
[null,{"$f":"Dati!L2","v":"Operazioni di incasso e pagamento effettuate nel mese di:"},null,{"$f":"Dati!B5","v":"Aprile"}]
[null,null,null,null,null,null,null,null,{"$f":"Dati!L11","v":"Sommario"},{"$f":"Dati!L13","v":"Incassi"},{"$f":"Dati!L14","v":"Pagamenti"},null,{"$f":"Dati!O4","v":"Info"}]
[{"$f":"Dati!L5","v":"Giorno"},{"$f":"Dati!L6","v":"Tipo Operazione"},{"$f":"Dati!L7","v":"Descrizione Operazione"},{"$f":"Dati!L8","v":"Metodo"},{"$f":"Dati!L9","v":"Importo"},null,null,null,{"$f":"Dati!H2","v":"Bancomat"},{"$f":"SUMIFS($E$5:$E$61,$D$5:$D$61,I3,$F$5:$F$61,\"=D\")","v":0},{"$f":"SUMIFS($E$5:$E$61,$D$5:$D$61,I3,$F$5:$F$61,\"=H\")","v":0}]
[null,null,null,null,null,null,null,null,{"$f":"Dati!H3","v":"Contanti"},{"$f":"SUMIFS($E$5:$E$61,$D$5:$D$61,I4,$F$5:$F$61,\"=D\")","v":0},{"$f":"SUMIFS($E$5:$E$61,$D$5:$D$61,I4,$F$5:$F$61,\"=H\")","v":0},null,{"$f":"Dati!O6","v":"Indicare il giorno dell'operazione"}]
[null,null,null,null,null,{"$f":"IF(LEFT(B5,3)=\"Sti\",\"D\",IF(LEFT(B5,3)=\"Alt\",\"D\",\"H\"))","v":"H"},null,null,{"$f":"Dati!H4","v":"CartaCredito"},0,0,null,{"$f":"Dati!O7","v":"Selezionare il Tipo Operazione"}]
[null,null,null,null,null,{"$f":"IF(LEFT(B6,3)=\"Sti\",\"D\",IF(LEFT(B6,3)=\"Alt\",\"D\",\"H\"))","v":"H"},null,null,{"$f":"Dati!H5","v":"Bonifico"},0,0,null,{"$f":"Dati!O8","v":"Valorizzare la descrizione"}]
[null,null,null,null,null,{"$f":"IF(LEFT(B7,3)=\"Sti\",\"D\",IF(LEFT(B7,3)=\"Alt\",\"D\",\"H\"))","v":"H"},null,null,{"$f":"Dati!H6","v":"Vario"},0,0,null,{"$f":"Dati!O9","v":"Selezionare il Metodo"}]
[null,null,null,null,null,{"$f":"IF(LEFT(B8,3)=\"Sti\",\"D\",IF(LEFT(B8,3)=\"Alt\",\"D\",\"H\"))","v":"H"},null,null,"TOTAL",{"$f":"J3+J4+J5+J6+J7","v":0},{"$f":"K3+K4+K5+K6+K7","v":0},null,{"$f":"Dati!O10","v":"Valorizzare l'importo"}]
[null,null,null,null,null,"H",null,null,null,null,null,null,{"$f":"Dati!O11","v":"Calcolo di Incasso o Pagamento"}]
[null,null,null,null,null,"H",null,null,{"$f":"Dati!L12","v":"Dettaglio"},{"$f":"Dati!L13","v":"Incassi"},{"$f":"Dati!L14","v":"Pagamenti"},null,{"$f":"Dati!O12","v":"in maniera automatica"}]
[null,null,null,null,null,"H",null,null,{"$f":"Dati!J2","v":"Stipendio"},{"$f":"SUMIFS(E$5:E$61,B$5:B$61,I11,$F$5:$F$61,\"=D\")","v":0},{"$f":"SUMIFS(E$5:E$61,B$5:B$61,I11,$F$5:$F$61,\"=H\")","v":0}]
[null,null,null,null,null,"H",null,null,{"$f":"Dati!J3","v":"Altre Entrate"},{"$f":"SUMIFS(E$5:E$61,B$5:B$61,I12,$F$5:$F$61,\"=D\")","v":0},0,null,{"$f":"Dati!O13","v":"Aggiornamento automatico di"}]
[null,null,null,null,null,"H",null,null,{"$f":"Dati!J4","v":"Tasse"},0,{"$f":"SUMIFS(E$5:E$61,B$5:B$61,I13,$F$5:$F$61,\"=H\")","v":0},null,{"$f":"Dati!O14","v":"Sommario e Dettaglio"}]
[null,null,null,null,null,"H",null,null,{"$f":"Dati!J5","v":"Spese Casa"},0,{"$f":"SUMIFS(E$5:E$61,B$5:B$61,I14,$F$5:$F$61,\"=H\")","v":0}]
[null,null,null,null,null,"H",null,null,{"$f":"Dati!J6","v":"Luce e Gas"},0,0,null,{"$f":"Dati!O15","v":"Al termine delle operazioni,"}]
[null,null,null,null,null,"H",null,null,{"$f":"Dati!J7","v":"Supermercato"},0,0,null,{"$f":"Dati!O16","v":"premere"},{"$f":"Dati!P16","v":"TORNARE"}]
[null,null,null,null,null,"H",null,null,{"$f":"Dati!J8","v":"Telefonia"},0,0,null,{"$f":"Dati!O17","v":"e si ritorna al foglio Start"}]
[null,null,null,null,null,"H",null,null,{"$f":"Dati!J9","v":"Elettronica"},0,0]
[null,null,null,null,null,"H",null,null,{"$f":"Dati!J10","v":"Auto Moto"},0,0]
[null,null,null,null,null,"H",null,null,{"$f":"Dati!J11","v":"Assicurazioni"},0,0]
[null,null,null,null,null,"H",null,null,{"$f":"Dati!J12","v":"Manutenzione"},0,0]
[null,null,null,null,null,"H",null,null,{"$f":"Dati!J13","v":"Medicinali"},0,0]
[null,null,null,null,null,"H",null,null,{"$f":"Dati!J14","v":"Ristoranti"},0,0]
[null,null,null,null,null,"H",null,null,{"$f":"Dati!J15","v":"Abbigliamento"},0,0]
[null,null,null,null,null,"H",null,null,{"$f":"Dati!J16","v":"Istruzione"},0,0]
[null,null,null,null,null,"H",null,null,{"$f":"Dati!J17","v":"Divertimento"},0,0]
[null,null,null,null,null,"H",null,null,{"$f":"Dati!J18","v":"Vacanze"},0,0]
[null,null,null,null,null,"H",null,null,{"$f":"Dati!J19","v":"Spese Varie"},0,0]
[null,null,null,null,null,"H",null,null,"TOTAL",{"$f":"J11+J12","v":0},{"$f":"SUM(K13:K28)","v":0}]
[null,null,null,null,null,"H"]
[null,null,null,null,null,"H"]
[null,null,null,null,null,"H"]
[null,null,null,null,null,"H"]
[null,null,null,null,null,"H"]
[null,null,null,null,null,"H"]
[null,null,null,null,null,"H"]
[null,null,null,null,null,"H"]
[null,null,null,null,null,"H"]
[null,null,null,null,null,"H"]
[null,null,null,null,null,"H"]
[null,null,null,null,null,"H"]
[null,null,null,null,null,"H"]
[null,null,null,null,null,"H"]
[null,null,null,null,null,"H"]
[null,null,null,null,null,"H"]
[null,null,null,null,null,"H"]
[null,null,null,null,null,"H"]
[null,null,null,null,null,"H"]
[null,null,null,null,null,"H"]
[null,null,null,null,null,"H"]
[null,null,null,null,null,"H"]
[null,null,null,null,null,"H"]
[null,null,null,null,null,"H"]
[null,null,null,null,null,"H"]
[null,null,null,null,null,"H"]
[null,null,null,null,null,"H"]
[null,null,null,null,null,"H"]
[null,null,null,null,null,"H"]
[null,null,null,null,null,"H"]
[null,null,null,null,null,"H"]
[null,null,null,null,null,"H"]

{"sheet":"M05","index":5,"n_rows":61,"n_cols":14,"rows_kept":61,"cut":false,"hidden":false,"merged":[[2,0,3,0],[2,2,3,2],[2,3,3,3],[2,1,3,1],[2,4,3,4]]}
[null,{"$f":"Dati!L2","v":"Operazioni di incasso e pagamento effettuate nel mese di:"},null,{"$f":"Dati!B6","v":"Maggio"}]
[null,null,null,null,null,null,null,null,{"$f":"Dati!L11","v":"Sommario"},{"$f":"Dati!L13","v":"Incassi"},{"$f":"Dati!L14","v":"Pagamenti"},null,{"$f":"Dati!O4","v":"Info"}]
[{"$f":"Dati!L5","v":"Giorno"},{"$f":"Dati!L6","v":"Tipo Operazione"},{"$f":"Dati!L7","v":"Descrizione Operazione"},{"$f":"Dati!L8","v":"Metodo"},{"$f":"Dati!L9","v":"Importo"},null,null,null,{"$f":"Dati!H2","v":"Bancomat"},{"$f":"SUMIFS($E$5:$E$61,$D$5:$D$61,I3,$F$5:$F$61,\"=D\")","v":0},{"$f":"SUMIFS($E$5:$E$61,$D$5:$D$61,I3,$F$5:$F$61,\"=H\")","v":0}]
[null,null,null,null,null,null,null,null,{"$f":"Dati!H3","v":"Contanti"},{"$f":"SUMIFS($E$5:$E$61,$D$5:$D$61,I4,$F$5:$F$61,\"=D\")","v":0},{"$f":"SUMIFS($E$5:$E$61,$D$5:$D$61,I4,$F$5:$F$61,\"=H\")","v":0},null,{"$f":"Dati!O6","v":"Indicare il giorno dell'operazione"}]
[null,null,null,null,null,{"$f":"IF(LEFT(B5,3)=\"Sti\",\"D\",IF(LEFT(B5,3)=\"Alt\",\"D\",\"H\"))","v":"H"},null,null,{"$f":"Dati!H4","v":"CartaCredito"},0,0,null,{"$f":"Dati!O7","v":"Selezionare il Tipo Operazione"}]
[null,null,null,null,null,{"$f":"IF(LEFT(B6,3)=\"Sti\",\"D\",IF(LEFT(B6,3)=\"Alt\",\"D\",\"H\"))","v":"H"},null,null,{"$f":"Dati!H5","v":"Bonifico"},0,0,null,{"$f":"Dati!O8","v":"Valorizzare la descrizione"}]
[null,null,null,null,null,{"$f":"IF(LEFT(B7,3)=\"Sti\",\"D\",IF(LEFT(B7,3)=\"Alt\",\"D\",\"H\"))","v":"H"},null,null,{"$f":"Dati!H6","v":"Vario"},0,0,null,{"$f":"Dati!O9","v":"Selezionare il Metodo"}]
[null,null,null,null,null,{"$f":"IF(LEFT(B8,3)=\"Sti\",\"D\",IF(LEFT(B8,3)=\"Alt\",\"D\",\"H\"))","v":"H"},null,null,"TOTAL",{"$f":"J3+J4+J5+J6+J7","v":0},{"$f":"K3+K4+K5+K6+K7","v":0},null,{"$f":"Dati!O10","v":"Valorizzare l'importo"}]
[null,null,null,null,null,"H",null,null,null,null,null,null,{"$f":"Dati!O11","v":"Calcolo di Incasso o Pagamento"}]
[null,null,null,null,null,"H",null,null,{"$f":"Dati!L12","v":"Dettaglio"},{"$f":"Dati!L13","v":"Incassi"},{"$f":"Dati!L14","v":"Pagamenti"},null,{"$f":"Dati!O12","v":"in maniera automatica"}]
[null,null,null,null,null,"H",null,null,{"$f":"Dati!J2","v":"Stipendio"},{"$f":"SUMIFS(E$5:E$61,B$5:B$61,I11,$F$5:$F$61,\"=D\")","v":0},{"$f":"SUMIFS(E$5:E$61,B$5:B$61,I11,$F$5:$F$61,\"=H\")","v":0}]
[null,null,null,null,null,"H",null,null,{"$f":"Dati!J3","v":"Altre Entrate"},{"$f":"SUMIFS(E$5:E$61,B$5:B$61,I12,$F$5:$F$61,\"=D\")","v":0},0,null,{"$f":"Dati!O13","v":"Aggiornamento automatico di"}]
[null,null,null,null,null,"H",null,null,{"$f":"Dati!J4","v":"Tasse"},0,{"$f":"SUMIFS(E$5:E$61,B$5:B$61,I13,$F$5:$F$61,\"=H\")","v":0},null,{"$f":"Dati!O14","v":"Sommario e Dettaglio"}]
[null,null,null,null,null,"H",null,null,{"$f":"Dati!J5","v":"Spese Casa"},0,{"$f":"SUMIFS(E$5:E$61,B$5:B$61,I14,$F$5:$F$61,\"=H\")","v":0}]
[null,null,null,null,null,"H",null,null,{"$f":"Dati!J6","v":"Luce e Gas"},0,0,null,{"$f":"Dati!O15","v":"Al termine delle operazioni,"}]
[null,null,null,null,null,"H",null,null,{"$f":"Dati!J7","v":"Supermercato"},0,0,null,{"$f":"Dati!O16","v":"premere"},{"$f":"Dati!P16","v":"TORNARE"}]
[null,null,null,null,null,"H",null,null,{"$f":"Dati!J8","v":"Telefonia"},0,0,null,{"$f":"Dati!O17","v":"e si ritorna al foglio Start"}]
[null,null,null,null,null,"H",null,null,{"$f":"Dati!J9","v":"Elettronica"},0,0]
[null,null,null,null,null,"H",null,null,{"$f":"Dati!J10","v":"Auto Moto"},0,0]
[null,null,null,null,null,"H",null,null,{"$f":"Dati!J11","v":"Assicurazioni"},0,0]
[null,null,null,null,null,"H",null,null,{"$f":"Dati!J12","v":"Manutenzione"},0,0]
[null,null,null,null,null,"H",null,null,{"$f":"Dati!J13","v":"Medicinali"},0,0]
[null,null,null,null,null,"H",null,null,{"$f":"Dati!J14","v":"Ristoranti"},0,0]
[null,null,null,null,null,"H",null,null,{"$f":"Dati!J15","v":"Abbigliamento"},0,0]
[null,null,null,null,null,"H",null,null,{"$f":"Dati!J16","v":"Istruzione"},0,0]
[null,null,null,null,null,"H",null,null,{"$f":"Dati!J17","v":"Divertimento"},0,0]
[null,null,null,null,null,"H",null,null,{"$f":"Dati!J18","v":"Vacanze"},0,0]
[null,null,null,null,null,"H",null,null,{"$f":"Dati!J19","v":"Spese Varie"},0,0]
[null,null,null,null,null,"H",null,null,"TOTAL",{"$f":"J11+J12","v":0},{"$f":"SUM(K13:K28)","v":0}]
[null,null,null,null,null,"H"]
[null,null,null,null,null,"H"]
[null,null,null,null,null,"H"]
[null,null,null,null,null,"H"]
[null,null,null,null,null,"H"]
[null,null,null,null,null,"H"]
[null,null,null,null,null,"H"]
[null,null,null,null,null,"H"]
[null,null,null,null,null,"H"]
[null,null,null,null,null,"H"]
[null,null,null,null,null,"H"]
[null,null,null,null,null,"H"]
[null,null,null,null,null,"H"]
[null,null,null,null,null,"H"]
[null,null,null,null,null,"H"]
[null,null,null,null,null,"H"]
[null,null,null,null,null,"H"]
[null,null,null,null,null,"H"]
[null,null,null,null,null,"H"]
[null,null,null,null,null,"H"]
[null,null,null,null,null,"H"]
[null,null,null,null,null,"H"]
[null,null,null,null,null,"H"]
[null,null,null,null,null,"H"]
[null,null,null,null,null,"H"]
[null,null,null,null,null,"H"]
[null,null,null,null,null,"H"]
[null,null,null,null,null,"H"]
[null,null,null,null,null,"H"]
[null,null,null,null,null,"H"]
[null,null,null,null,null,"H"]
[null,null,null,null,null,"H"]

{"sheet":"M06","index":6,"n_rows":61,"n_cols":14,"rows_kept":61,"cut":false,"hidden":false,"merged":[[2,0,3,0],[2,2,3,2],[2,3,3,3],[2,1,3,1],[2,4,3,4]]}
[null,{"$f":"Dati!L2","v":"Operazioni di incasso e pagamento effettuate nel mese di:"},null,{"$f":"Dati!B7","v":"Giugno"}]
[null,null,null,null,null,null,null,null,{"$f":"Dati!L11","v":"Sommario"},{"$f":"Dati!L13","v":"Incassi"},{"$f":"Dati!L14","v":"Pagamenti"},null,{"$f":"Dati!O4","v":"Info"}]
[{"$f":"Dati!L5","v":"Giorno"},{"$f":"Dati!L6","v":"Tipo Operazione"},{"$f":"Dati!L7","v":"Descrizione Operazione"},{"$f":"Dati!L8","v":"Metodo"},{"$f":"Dati!L9","v":"Importo"},null,null,null,{"$f":"Dati!H2","v":"Bancomat"},{"$f":"SUMIFS($E$5:$E$61,$D$5:$D$61,I3,$F$5:$F$61,\"=D\")","v":0},{"$f":"SUMIFS($E$5:$E$61,$D$5:$D$61,I3,$F$5:$F$61,\"=H\")","v":0}]
[null,null,null,null,null,null,null,null,{"$f":"Dati!H3","v":"Contanti"},{"$f":"SUMIFS($E$5:$E$61,$D$5:$D$61,I4,$F$5:$F$61,\"=D\")","v":0},{"$f":"SUMIFS($E$5:$E$61,$D$5:$D$61,I4,$F$5:$F$61,\"=H\")","v":0},null,{"$f":"Dati!O6","v":"Indicare il giorno dell'operazione"}]
[null,null,null,null,null,{"$f":"IF(LEFT(B5,3)=\"Sti\",\"D\",IF(LEFT(B5,3)=\"Alt\",\"D\",\"H\"))","v":"H"},null,null,{"$f":"Dati!H4","v":"CartaCredito"},0,0,null,{"$f":"Dati!O7","v":"Selezionare il Tipo Operazione"}]
[null,null,null,null,null,{"$f":"IF(LEFT(B6,3)=\"Sti\",\"D\",IF(LEFT(B6,3)=\"Alt\",\"D\",\"H\"))","v":"H"},null,null,{"$f":"Dati!H5","v":"Bonifico"},0,0,null,{"$f":"Dati!O8","v":"Valorizzare la descrizione"}]
[null,null,null,null,null,{"$f":"IF(LEFT(B7,3)=\"Sti\",\"D\",IF(LEFT(B7,3)=\"Alt\",\"D\",\"H\"))","v":"H"},null,null,{"$f":"Dati!H6","v":"Vario"},0,0,null,{"$f":"Dati!O9","v":"Selezionare il Metodo"}]
[null,null,null,null,null,{"$f":"IF(LEFT(B8,3)=\"Sti\",\"D\",IF(LEFT(B8,3)=\"Alt\",\"D\",\"H\"))","v":"H"},null,null,"TOTAL",{"$f":"J3+J4+J5+J6+J7","v":0},{"$f":"K3+K4+K5+K6+K7","v":0},null,{"$f":"Dati!O10","v":"Valorizzare l'importo"}]
[null,null,null,null,null,"H",null,null,null,null,null,null,{"$f":"Dati!O11","v":"Calcolo di Incasso o Pagamento"}]
[null,null,null,null,null,"H",null,null,{"$f":"Dati!L12","v":"Dettaglio"},{"$f":"Dati!L13","v":"Incassi"},{"$f":"Dati!L14","v":"Pagamenti"},null,{"$f":"Dati!O12","v":"in maniera automatica"}]
[null,null,null,null,null,"H",null,null,{"$f":"Dati!J2","v":"Stipendio"},{"$f":"SUMIFS(E$5:E$61,B$5:B$61,I11,$F$5:$F$61,\"=D\")","v":0},{"$f":"SUMIFS(E$5:E$61,B$5:B$61,I11,$F$5:$F$61,\"=H\")","v":0}]
[null,null,null,null,null,"H",null,null,{"$f":"Dati!J3","v":"Altre Entrate"},{"$f":"SUMIFS(E$5:E$61,B$5:B$61,I12,$F$5:$F$61,\"=D\")","v":0},0,null,{"$f":"Dati!O13","v":"Aggiornamento automatico di"}]
[null,null,null,null,null,"H",null,null,{"$f":"Dati!J4","v":"Tasse"},0,{"$f":"SUMIFS(E$5:E$61,B$5:B$61,I13,$F$5:$F$61,\"=H\")","v":0},null,{"$f":"Dati!O14","v":"Sommario e Dettaglio"}]
[null,null,null,null,null,"H",null,null,{"$f":"Dati!J5","v":"Spese Casa"},0,{"$f":"SUMIFS(E$5:E$61,B$5:B$61,I14,$F$5:$F$61,\"=H\")","v":0}]
[null,null,null,null,null,"H",null,null,{"$f":"Dati!J6","v":"Luce e Gas"},0,0,null,{"$f":"Dati!O15","v":"Al termine delle operazioni,"}]
[null,null,null,null,null,"H",null,null,{"$f":"Dati!J7","v":"Supermercato"},0,0,null,{"$f":"Dati!O16","v":"premere"},{"$f":"Dati!P16","v":"TORNARE"}]
[null,null,null,null,null,"H",null,null,{"$f":"Dati!J8","v":"Telefonia"},0,0,null,{"$f":"Dati!O17","v":"e si ritorna al foglio Start"}]
[null,null,null,null,null,"H",null,null,{"$f":"Dati!J9","v":"Elettronica"},0,0]
[null,null,null,null,null,"H",null,null,{"$f":"Dati!J10","v":"Auto Moto"},0,0]
[null,null,null,null,null,"H",null,null,{"$f":"Dati!J11","v":"Assicurazioni"},0,0]
[null,null,null,null,null,"H",null,null,{"$f":"Dati!J12","v":"Manutenzione"},0,0]
[null,null,null,null,null,"H",null,null,{"$f":"Dati!J13","v":"Medicinali"},0,0]
[null,null,null,null,null,"H",null,null,{"$f":"Dati!J14","v":"Ristoranti"},0,0]
[null,null,null,null,null,"H",null,null,{"$f":"Dati!J15","v":"Abbigliamento"},0,0]
[null,null,null,null,null,"H",null,null,{"$f":"Dati!J16","v":"Istruzione"},0,0]
[null,null,null,null,null,"H",null,null,{"$f":"Dati!J17","v":"Divertimento"},0,0]
[null,null,null,null,null,"H",null,null,{"$f":"Dati!J18","v":"Vacanze"},0,0]
[null,null,null,null,null,"H",null,null,{"$f":"Dati!J19","v":"Spese Varie"},0,0]
[null,null,null,null,null,"H",null,null,"TOTAL",{"$f":"J11+J12","v":0},{"$f":"SUM(K13:K28)","v":0}]
[null,null,null,null,null,"H"]
[null,null,null,null,null,"H"]
[null,null,null,null,null,"H"]
[null,null,null,null,null,"H"]
[null,null,null,null,null,"H"]
[null,null,null,null,null,"H"]
[null,null,null,null,null,"H"]
[null,null,null,null,null,"H"]
[null,null,null,null,null,"H"]
[null,null,null,null,null,"H"]
[null,null,null,null,null,"H"]
[null,null,null,null,null,"H"]
[null,null,null,null,null,"H"]
[null,null,null,null,null,"H"]
[null,null,null,null,null,"H"]
[null,null,null,null,null,"H"]
[null,null,null,null,null,"H"]
[null,null,null,null,null,"H"]
[null,null,null,null,null,"H"]
[null,null,null,null,null,"H"]
[null,null,null,null,null,"H"]
[null,null,null,null,null,"H"]
[null,null,null,null,null,"H"]
[null,null,null,null,null,"H"]
[null,null,null,null,null,"H"]
[null,null,null,null,null,"H"]
[null,null,null,null,null,"H"]
[null,null,null,null,null,"H"]
[null,null,null,null,null,"H"]
[null,null,null,null,null,"H"]
[null,null,null,null,null,"H"]
[null,null,null,null,null,"H"]

{"sheet":"M07","index":7,"n_rows":61,"n_cols":14,"rows_kept":61,"cut":false,"hidden":false,"merged":[[2,0,3,0],[2,2,3,2],[2,3,3,3],[2,1,3,1],[2,4,3,4]]}
[null,{"$f":"Dati!L2","v":"Operazioni di incasso e pagamento effettuate nel mese di:"},null,{"$f":"Dati!B8","v":"Luglio"}]
[null,null,null,null,null,null,null,null,{"$f":"Dati!L11","v":"Sommario"},{"$f":"Dati!L13","v":"Incassi"},{"$f":"Dati!L14","v":"Pagamenti"},null,{"$f":"Dati!O4","v":"Info"}]
[{"$f":"Dati!L5","v":"Giorno"},{"$f":"Dati!L6","v":"Tipo Operazione"},{"$f":"Dati!L7","v":"Descrizione Operazione"},{"$f":"Dati!L8","v":"Metodo"},{"$f":"Dati!L9","v":"Importo"},null,null,null,{"$f":"Dati!H2","v":"Bancomat"},{"$f":"SUMIFS($E$5:$E$61,$D$5:$D$61,I3,$F$5:$F$61,\"=D\")","v":0},{"$f":"SUMIFS($E$5:$E$61,$D$5:$D$61,I3,$F$5:$F$61,\"=H\")","v":0}]
[null,null,null,null,null,null,null,null,{"$f":"Dati!H3","v":"Contanti"},{"$f":"SUMIFS($E$5:$E$61,$D$5:$D$61,I4,$F$5:$F$61,\"=D\")","v":0},{"$f":"SUMIFS($E$5:$E$61,$D$5:$D$61,I4,$F$5:$F$61,\"=H\")","v":0},null,{"$f":"Dati!O6","v":"Indicare il giorno dell'operazione"}]
[null,null,null,null,null,{"$f":"IF(LEFT(B5,3)=\"Sti\",\"D\",IF(LEFT(B5,3)=\"Alt\",\"D\",\"H\"))","v":"H"},null,null,{"$f":"Dati!H4","v":"CartaCredito"},0,0,null,{"$f":"Dati!O7","v":"Selezionare il Tipo Operazione"}]
[null,null,null,null,null,{"$f":"IF(LEFT(B6,3)=\"Sti\",\"D\",IF(LEFT(B6,3)=\"Alt\",\"D\",\"H\"))","v":"H"},null,null,{"$f":"Dati!H5","v":"Bonifico"},0,0,null,{"$f":"Dati!O8","v":"Valorizzare la descrizione"}]
[null,null,null,null,null,{"$f":"IF(LEFT(B7,3)=\"Sti\",\"D\",IF(LEFT(B7,3)=\"Alt\",\"D\",\"H\"))","v":"H"},null,null,{"$f":"Dati!H6","v":"Vario"},0,0,null,{"$f":"Dati!O9","v":"Selezionare il Metodo"}]
[null,null,null,null,null,{"$f":"IF(LEFT(B8,3)=\"Sti\",\"D\",IF(LEFT(B8,3)=\"Alt\",\"D\",\"H\"))","v":"H"},null,null,"TOTAL",{"$f":"J3+J4+J5+J6+J7","v":0},{"$f":"K3+K4+K5+K6+K7","v":0},null,{"$f":"Dati!O10","v":"Valorizzare l'importo"}]
[null,null,null,null,null,"H",null,null,null,null,null,null,{"$f":"Dati!O11","v":"Calcolo di Incasso o Pagamento"}]
[null,null,null,null,null,"H",null,null,{"$f":"Dati!L12","v":"Dettaglio"},{"$f":"Dati!L13","v":"Incassi"},{"$f":"Dati!L14","v":"Pagamenti"},null,{"$f":"Dati!O12","v":"in maniera automatica"}]
[null,null,null,null,null,"H",null,null,{"$f":"Dati!J2","v":"Stipendio"},{"$f":"SUMIFS(E$5:E$61,B$5:B$61,I11,$F$5:$F$61,\"=D\")","v":0},{"$f":"SUMIFS(E$5:E$61,B$5:B$61,I11,$F$5:$F$61,\"=H\")","v":0}]
[null,null,null,null,null,"H",null,null,{"$f":"Dati!J3","v":"Altre Entrate"},{"$f":"SUMIFS(E$5:E$61,B$5:B$61,I12,$F$5:$F$61,\"=D\")","v":0},0,null,{"$f":"Dati!O13","v":"Aggiornamento automatico di"}]
[null,null,null,null,null,"H",null,null,{"$f":"Dati!J4","v":"Tasse"},0,{"$f":"SUMIFS(E$5:E$61,B$5:B$61,I13,$F$5:$F$61,\"=H\")","v":0},null,{"$f":"Dati!O14","v":"Sommario e Dettaglio"}]
[null,null,null,null,null,"H",null,null,{"$f":"Dati!J5","v":"Spese Casa"},0,{"$f":"SUMIFS(E$5:E$61,B$5:B$61,I14,$F$5:$F$61,\"=H\")","v":0}]
[null,null,null,null,null,"H",null,null,{"$f":"Dati!J6","v":"Luce e Gas"},0,0,null,{"$f":"Dati!O15","v":"Al termine delle operazioni,"}]
[null,null,null,null,null,"H",null,null,{"$f":"Dati!J7","v":"Supermercato"},0,0,null,{"$f":"Dati!O16","v":"premere"},{"$f":"Dati!P16","v":"TORNARE"}]
[null,null,null,null,null,"H",null,null,{"$f":"Dati!J8","v":"Telefonia"},0,0,null,{"$f":"Dati!O17","v":"e si ritorna al foglio Start"}]
[null,null,null,null,null,"H",null,null,{"$f":"Dati!J9","v":"Elettronica"},0,0]
[null,null,null,null,null,"H",null,null,{"$f":"Dati!J10","v":"Auto Moto"},0,0]
[null,null,null,null,null,"H",null,null,{"$f":"Dati!J11","v":"Assicurazioni"},0,0]
[null,null,null,null,null,"H",null,null,{"$f":"Dati!J12","v":"Manutenzione"},0,0]
[null,null,null,null,null,"H",null,null,{"$f":"Dati!J13","v":"Medicinali"},0,0]
[null,null,null,null,null,"H",null,null,{"$f":"Dati!J14","v":"Ristoranti"},0,0]
[null,null,null,null,null,"H",null,null,{"$f":"Dati!J15","v":"Abbigliamento"},0,0]
[null,null,null,null,null,"H",null,null,{"$f":"Dati!J16","v":"Istruzione"},0,0]
[null,null,null,null,null,"H",null,null,{"$f":"Dati!J17","v":"Divertimento"},0,0]
[null,null,null,null,null,"H",null,null,{"$f":"Dati!J18","v":"Vacanze"},0,0]
[null,null,null,null,null,"H",null,null,{"$f":"Dati!J19","v":"Spese Varie"},0,0]
[null,null,null,null,null,"H",null,null,"TOTAL",{"$f":"J11+J12","v":0},{"$f":"SUM(K13:K28)","v":0}]
[null,null,null,null,null,"H"]
[null,null,null,null,null,"H"]
[null,null,null,null,null,"H"]
[null,null,null,null,null,"H"]
[null,null,null,null,null,"H"]
[null,null,null,null,null,"H"]
[null,null,null,null,null,"H"]
[null,null,null,null,null,"H"]
[null,null,null,null,null,"H"]
[null,null,null,null,null,"H"]
[null,null,null,null,null,"H"]
[null,null,null,null,null,"H"]
[null,null,null,null,null,"H"]
[null,null,null,null,null,"H"]
[null,null,null,null,null,"H"]
[null,null,null,null,null,"H"]
[null,null,null,null,null,"H"]
[null,null,null,null,null,"H"]
[null,null,null,null,null,"H"]
[null,null,null,null,null,"H"]
[null,null,null,null,null,"H"]
[null,null,null,null,null,"H"]
[null,null,null,null,null,"H"]
[null,null,null,null,null,"H"]
[null,null,null,null,null,"H"]
[null,null,null,null,null,"H"]
[null,null,null,null,null,"H"]
[null,null,null,null,null,"H"]
[null,null,null,null,null,"H"]
[null,null,null,null,null,"H"]
[null,null,null,null,null,"H"]
[null,null,null,null,null,"H"]

{"sheet":"M08","index":8,"n_rows":61,"n_cols":14,"rows_kept":61,"cut":false,"hidden":false,"merged":[[2,0,3,0],[2,2,3,2],[2,3,3,3],[2,1,3,1],[2,4,3,4]]}
[null,{"$f":"Dati!L2","v":"Operazioni di incasso e pagamento effettuate nel mese di:"},null,{"$f":"Dati!B9","v":"Agosto"}]
[null,null,null,null,null,null,null,null,{"$f":"Dati!L11","v":"Sommario"},{"$f":"Dati!L13","v":"Incassi"},{"$f":"Dati!L14","v":"Pagamenti"},null,{"$f":"Dati!O4","v":"Info"}]
[{"$f":"Dati!L5","v":"Giorno"},{"$f":"Dati!L6","v":"Tipo Operazione"},{"$f":"Dati!L7","v":"Descrizione Operazione"},{"$f":"Dati!L8","v":"Metodo"},{"$f":"Dati!L9","v":"Importo"},null,null,null,{"$f":"Dati!H2","v":"Bancomat"},{"$f":"SUMIFS($E$5:$E$61,$D$5:$D$61,I3,$F$5:$F$61,\"=D\")","v":0},{"$f":"SUMIFS($E$5:$E$61,$D$5:$D$61,I3,$F$5:$F$61,\"=H\")","v":0}]
[null,null,null,null,null,null,null,null,{"$f":"Dati!H3","v":"Contanti"},{"$f":"SUMIFS($E$5:$E$61,$D$5:$D$61,I4,$F$5:$F$61,\"=D\")","v":0},{"$f":"SUMIFS($E$5:$E$61,$D$5:$D$61,I4,$F$5:$F$61,\"=H\")","v":0},null,{"$f":"Dati!O6","v":"Indicare il giorno dell'operazione"}]
[null,null,null,null,null,{"$f":"IF(LEFT(B5,3)=\"Sti\",\"D\",IF(LEFT(B5,3)=\"Alt\",\"D\",\"H\"))","v":"H"},null,null,{"$f":"Dati!H4","v":"CartaCredito"},0,0,null,{"$f":"Dati!O7","v":"Selezionare il Tipo Operazione"}]
[null,null,null,null,null,{"$f":"IF(LEFT(B6,3)=\"Sti\",\"D\",IF(LEFT(B6,3)=\"Alt\",\"D\",\"H\"))","v":"H"},null,null,{"$f":"Dati!H5","v":"Bonifico"},0,0,null,{"$f":"Dati!O8","v":"Valorizzare la descrizione"}]
[null,null,null,null,null,{"$f":"IF(LEFT(B7,3)=\"Sti\",\"D\",IF(LEFT(B7,3)=\"Alt\",\"D\",\"H\"))","v":"H"},null,null,{"$f":"Dati!H6","v":"Vario"},0,0,null,{"$f":"Dati!O9","v":"Selezionare il Metodo"}]
[null,null,null,null,null,{"$f":"IF(LEFT(B8,3)=\"Sti\",\"D\",IF(LEFT(B8,3)=\"Alt\",\"D\",\"H\"))","v":"H"},null,null,"TOTAL",{"$f":"J3+J4+J5+J6+J7","v":0},{"$f":"K3+K4+K5+K6+K7","v":0},null,{"$f":"Dati!O10","v":"Valorizzare l'importo"}]
[null,null,null,null,null,"H",null,null,null,null,null,null,{"$f":"Dati!O11","v":"Calcolo di Incasso o Pagamento"}]
[null,null,null,null,null,"H",null,null,{"$f":"Dati!L12","v":"Dettaglio"},{"$f":"Dati!L13","v":"Incassi"},{"$f":"Dati!L14","v":"Pagamenti"},null,{"$f":"Dati!O12","v":"in maniera automatica"}]
[null,null,null,null,null,"H",null,null,{"$f":"Dati!J2","v":"Stipendio"},{"$f":"SUMIFS(E$5:E$61,B$5:B$61,I11,$F$5:$F$61,\"=D\")","v":0},{"$f":"SUMIFS(E$5:E$61,B$5:B$61,I11,$F$5:$F$61,\"=H\")","v":0}]
[null,null,null,null,null,"H",null,null,{"$f":"Dati!J3","v":"Altre Entrate"},{"$f":"SUMIFS(E$5:E$61,B$5:B$61,I12,$F$5:$F$61,\"=D\")","v":0},0,null,{"$f":"Dati!O13","v":"Aggiornamento automatico di"}]
[null,null,null,null,null,"H",null,null,{"$f":"Dati!J4","v":"Tasse"},0,{"$f":"SUMIFS(E$5:E$61,B$5:B$61,I13,$F$5:$F$61,\"=H\")","v":0},null,{"$f":"Dati!O14","v":"Sommario e Dettaglio"}]
[null,null,null,null,null,"H",null,null,{"$f":"Dati!J5","v":"Spese Casa"},0,{"$f":"SUMIFS(E$5:E$61,B$5:B$61,I14,$F$5:$F$61,\"=H\")","v":0}]
[null,null,null,null,null,"H",null,null,{"$f":"Dati!J6","v":"Luce e Gas"},0,0,null,{"$f":"Dati!O15","v":"Al termine delle operazioni,"}]
[null,null,null,null,null,"H",null,null,{"$f":"Dati!J7","v":"Supermercato"},0,0,null,{"$f":"Dati!O16","v":"premere"},{"$f":"Dati!P16","v":"TORNARE"}]
[null,null,null,null,null,"H",null,null,{"$f":"Dati!J8","v":"Telefonia"},0,0,null,{"$f":"Dati!O17","v":"e si ritorna al foglio Start"}]
[null,null,null,null,null,"H",null,null,{"$f":"Dati!J9","v":"Elettronica"},0,0]
[null,null,null,null,null,"H",null,null,{"$f":"Dati!J10","v":"Auto Moto"},0,0]
[null,null,null,null,null,"H",null,null,{"$f":"Dati!J11","v":"Assicurazioni"},0,0]
[null,null,null,null,null,"H",null,null,{"$f":"Dati!J12","v":"Manutenzione"},0,0]
[null,null,null,null,null,"H",null,null,{"$f":"Dati!J13","v":"Medicinali"},0,0]
[null,null,null,null,null,"H",null,null,{"$f":"Dati!J14","v":"Ristoranti"},0,0]
[null,null,null,null,null,"H",null,null,{"$f":"Dati!J15","v":"Abbigliamento"},0,0]
[null,null,null,null,null,"H",null,null,{"$f":"Dati!J16","v":"Istruzione"},0,0]
[null,null,null,null,null,"H",null,null,{"$f":"Dati!J17","v":"Divertimento"},0,0]
[null,null,null,null,null,"H",null,null,{"$f":"Dati!J18","v":"Vacanze"},0,0]
[null,null,null,null,null,"H",null,null,{"$f":"Dati!J19","v":"Spese Varie"},0,0]
[null,null,null,null,null,"H",null,null,"TOTAL",{"$f":"J11+J12","v":0},{"$f":"SUM(K13:K28)","v":0}]
[null,null,null,null,null,"H"]
[null,null,null,null,null,"H"]
[null,null,null,null,null,"H"]
[null,null,null,null,null,"H"]
[null,null,null,null,null,"H"]
[null,null,null,null,null,"H"]
[null,null,null,null,null,"H"]
[null,null,null,null,null,"H"]
[null,null,null,null,null,"H"]
[null,null,null,null,null,"H"]
[null,null,null,null,null,"H"]
[null,null,null,null,null,"H"]
[null,null,null,null,null,"H"]
[null,null,null,null,null,"H"]
[null,null,null,null,null,"H"]
[null,null,null,null,null,"H"]
[null,null,null,null,null,"H"]
[null,null,null,null,null,"H"]
[null,null,null,null,null,"H"]
[null,null,null,null,null,"H"]
[null,null,null,null,null,"H"]
[null,null,null,null,null,"H"]
[null,null,null,null,null,"H"]
[null,null,null,null,null,"H"]
[null,null,null,null,null,"H"]
[null,null,null,null,null,"H"]
[null,null,null,null,null,"H"]
[null,null,null,null,null,"H"]
[null,null,null,null,null,"H"]
[null,null,null,null,null,"H"]
[null,null,null,null,null,"H"]
[null,null,null,null,null,"H"]

{"sheet":"M09","index":9,"n_rows":61,"n_cols":14,"rows_kept":61,"cut":false,"hidden":false,"merged":[[2,0,3,0],[2,2,3,2],[2,3,3,3],[2,1,3,1],[2,4,3,4]]}
[null,{"$f":"Dati!L2","v":"Operazioni di incasso e pagamento effettuate nel mese di:"},null,{"$f":"Dati!B10","v":"Settembre"}]
[null,null,null,null,null,null,null,null,{"$f":"Dati!L11","v":"Sommario"},{"$f":"Dati!L13","v":"Incassi"},{"$f":"Dati!L14","v":"Pagamenti"},null,{"$f":"Dati!O4","v":"Info"}]
[{"$f":"Dati!L5","v":"Giorno"},{"$f":"Dati!L6","v":"Tipo Operazione"},{"$f":"Dati!L7","v":"Descrizione Operazione"},{"$f":"Dati!L8","v":"Metodo"},{"$f":"Dati!L9","v":"Importo"},null,null,null,{"$f":"Dati!H2","v":"Bancomat"},{"$f":"SUMIFS($E$5:$E$61,$D$5:$D$61,I3,$F$5:$F$61,\"=D\")","v":0},{"$f":"SUMIFS($E$5:$E$61,$D$5:$D$61,I3,$F$5:$F$61,\"=H\")","v":0}]
[null,null,null,null,null,null,null,null,{"$f":"Dati!H3","v":"Contanti"},{"$f":"SUMIFS($E$5:$E$61,$D$5:$D$61,I4,$F$5:$F$61,\"=D\")","v":0},{"$f":"SUMIFS($E$5:$E$61,$D$5:$D$61,I4,$F$5:$F$61,\"=H\")","v":0},null,{"$f":"Dati!O6","v":"Indicare il giorno dell'operazione"}]
[null,null,null,null,null,{"$f":"IF(LEFT(B5,3)=\"Sti\",\"D\",IF(LEFT(B5,3)=\"Alt\",\"D\",\"H\"))","v":"H"},null,null,{"$f":"Dati!H4","v":"CartaCredito"},0,0,null,{"$f":"Dati!O7","v":"Selezionare il Tipo Operazione"}]
[null,null,null,null,null,{"$f":"IF(LEFT(B6,3)=\"Sti\",\"D\",IF(LEFT(B6,3)=\"Alt\",\"D\",\"H\"))","v":"H"},null,null,{"$f":"Dati!H5","v":"Bonifico"},0,0,null,{"$f":"Dati!O8","v":"Valorizzare la descrizione"}]
[null,null,null,null,null,{"$f":"IF(LEFT(B7,3)=\"Sti\",\"D\",IF(LEFT(B7,3)=\"Alt\",\"D\",\"H\"))","v":"H"},null,null,{"$f":"Dati!H6","v":"Vario"},0,0,null,{"$f":"Dati!O9","v":"Selezionare il Metodo"}]
[null,null,null,null,null,{"$f":"IF(LEFT(B8,3)=\"Sti\",\"D\",IF(LEFT(B8,3)=\"Alt\",\"D\",\"H\"))","v":"H"},null,null,"TOTAL",{"$f":"J3+J4+J5+J6+J7","v":0},{"$f":"K3+K4+K5+K6+K7","v":0},null,{"$f":"Dati!O10","v":"Valorizzare l'importo"}]
[null,null,null,null,null,"H",null,null,null,null,null,null,{"$f":"Dati!O11","v":"Calcolo di Incasso o Pagamento"}]
[null,null,null,null,null,"H",null,null,{"$f":"Dati!L12","v":"Dettaglio"},{"$f":"Dati!L13","v":"Incassi"},{"$f":"Dati!L14","v":"Pagamenti"},null,{"$f":"Dati!O12","v":"in maniera automatica"}]
[null,null,null,null,null,"H",null,null,{"$f":"Dati!J2","v":"Stipendio"},{"$f":"SUMIFS(E$5:E$61,B$5:B$61,I11,$F$5:$F$61,\"=D\")","v":0},{"$f":"SUMIFS(E$5:E$61,B$5:B$61,I11,$F$5:$F$61,\"=H\")","v":0}]
[null,null,null,null,null,"H",null,null,{"$f":"Dati!J3","v":"Altre Entrate"},{"$f":"SUMIFS(E$5:E$61,B$5:B$61,I12,$F$5:$F$61,\"=D\")","v":0},0,null,{"$f":"Dati!O13","v":"Aggiornamento automatico di"}]
[null,null,null,null,null,"H",null,null,{"$f":"Dati!J4","v":"Tasse"},0,{"$f":"SUMIFS(E$5:E$61,B$5:B$61,I13,$F$5:$F$61,\"=H\")","v":0},null,{"$f":"Dati!O14","v":"Sommario e Dettaglio"}]
[null,null,null,null,null,"H",null,null,{"$f":"Dati!J5","v":"Spese Casa"},0,{"$f":"SUMIFS(E$5:E$61,B$5:B$61,I14,$F$5:$F$61,\"=H\")","v":0}]
[null,null,null,null,null,"H",null,null,{"$f":"Dati!J6","v":"Luce e Gas"},0,0,null,{"$f":"Dati!O15","v":"Al termine delle operazioni,"}]
[null,null,null,null,null,"H",null,null,{"$f":"Dati!J7","v":"Supermercato"},0,0,null,{"$f":"Dati!O16","v":"premere"},{"$f":"Dati!P16","v":"TORNARE"}]
[null,null,null,null,null,"H",null,null,{"$f":"Dati!J8","v":"Telefonia"},0,0,null,{"$f":"Dati!O17","v":"e si ritorna al foglio Start"}]
[null,null,null,null,null,"H",null,null,{"$f":"Dati!J9","v":"Elettronica"},0,0]
[null,null,null,null,null,"H",null,null,{"$f":"Dati!J10","v":"Auto Moto"},0,0]
[null,null,null,null,null,"H",null,null,{"$f":"Dati!J11","v":"Assicurazioni"},0,0]
[null,null,null,null,null,"H",null,null,{"$f":"Dati!J12","v":"Manutenzione"},0,0]
[null,null,null,null,null,"H",null,null,{"$f":"Dati!J13","v":"Medicinali"},0,0]
[null,null,null,null,null,"H",null,null,{"$f":"Dati!J14","v":"Ristoranti"},0,0]
[null,null,null,null,null,"H",null,null,{"$f":"Dati!J15","v":"Abbigliamento"},0,0]
[null,null,null,null,null,"H",null,null,{"$f":"Dati!J16","v":"Istruzione"},0,0]
[null,null,null,null,null,"H",null,null,{"$f":"Dati!J17","v":"Divertimento"},0,0]
[null,null,null,null,null,"H",null,null,{"$f":"Dati!J18","v":"Vacanze"},0,0]
[null,null,null,null,null,"H",null,null,{"$f":"Dati!J19","v":"Spese Varie"},0,0]
[null,null,null,null,null,"H",null,null,"TOTAL",{"$f":"J11+J12","v":0},{"$f":"SUM(K13:K28)","v":0}]
[null,null,null,null,null,"H"]
[null,null,null,null,null,"H"]
[null,null,null,null,null,"H"]
[null,null,null,null,null,"H"]
[null,null,null,null,null,"H"]
[null,null,null,null,null,"H"]
[null,null,null,null,null,"H"]
[null,null,null,null,null,"H"]
[null,null,null,null,null,"H"]
[null,null,null,null,null,"H"]
[null,null,null,null,null,"H"]
[null,null,null,null,null,"H"]
[null,null,null,null,null,"H"]
[null,null,null,null,null,"H"]
[null,null,null,null,null,"H"]
[null,null,null,null,null,"H"]
[null,null,null,null,null,"H"]
[null,null,null,null,null,"H"]
[null,null,null,null,null,"H"]
[null,null,null,null,null,"H"]
[null,null,null,null,null,"H"]
[null,null,null,null,null,"H"]
[null,null,null,null,null,"H"]
[null,null,null,null,null,"H"]
[null,null,null,null,null,"H"]
[null,null,null,null,null,"H"]
[null,null,null,null,null,"H"]
[null,null,null,null,null,"H"]
[null,null,null,null,null,"H"]
[null,null,null,null,null,"H"]
[null,null,null,null,null,"H"]
[null,null,null,null,null,"H"]

{"sheet":"M10","index":10,"n_rows":61,"n_cols":14,"rows_kept":61,"cut":false,"hidden":false,"merged":[[2,0,3,0],[2,2,3,2],[2,3,3,3],[2,1,3,1],[2,4,3,4]]}
[null,{"$f":"Dati!L2","v":"Operazioni di incasso e pagamento effettuate nel mese di:"},null,{"$f":"Dati!B11","v":"Ottobre"}]
[null,null,null,null,null,null,null,null,{"$f":"Dati!L11","v":"Sommario"},{"$f":"Dati!L13","v":"Incassi"},{"$f":"Dati!L14","v":"Pagamenti"},null,{"$f":"Dati!O4","v":"Info"}]
[{"$f":"Dati!L5","v":"Giorno"},{"$f":"Dati!L6","v":"Tipo Operazione"},{"$f":"Dati!L7","v":"Descrizione Operazione"},{"$f":"Dati!L8","v":"Metodo"},{"$f":"Dati!L9","v":"Importo"},null,null,null,{"$f":"Dati!H2","v":"Bancomat"},{"$f":"SUMIFS($E$5:$E$61,$D$5:$D$61,I3,$F$5:$F$61,\"=D\")","v":0},{"$f":"SUMIFS($E$5:$E$61,$D$5:$D$61,I3,$F$5:$F$61,\"=H\")","v":0}]
[null,null,null,null,null,null,null,null,{"$f":"Dati!H3","v":"Contanti"},{"$f":"SUMIFS($E$5:$E$61,$D$5:$D$61,I4,$F$5:$F$61,\"=D\")","v":0},{"$f":"SUMIFS($E$5:$E$61,$D$5:$D$61,I4,$F$5:$F$61,\"=H\")","v":0},null,{"$f":"Dati!O6","v":"Indicare il giorno dell'operazione"}]
[null,null,null,null,null,{"$f":"IF(LEFT(B5,3)=\"Sti\",\"D\",IF(LEFT(B5,3)=\"Alt\",\"D\",\"H\"))","v":"H"},null,null,{"$f":"Dati!H4","v":"CartaCredito"},0,0,null,{"$f":"Dati!O7","v":"Selezionare il Tipo Operazione"}]
[null,null,null,null,null,{"$f":"IF(LEFT(B6,3)=\"Sti\",\"D\",IF(LEFT(B6,3)=\"Alt\",\"D\",\"H\"))","v":"H"},null,null,{"$f":"Dati!H5","v":"Bonifico"},0,0,null,{"$f":"Dati!O8","v":"Valorizzare la descrizione"}]
[null,null,null,null,null,{"$f":"IF(LEFT(B7,3)=\"Sti\",\"D\",IF(LEFT(B7,3)=\"Alt\",\"D\",\"H\"))","v":"H"},null,null,{"$f":"Dati!H6","v":"Vario"},0,0,null,{"$f":"Dati!O9","v":"Selezionare il Metodo"}]
[null,null,null,null,null,{"$f":"IF(LEFT(B8,3)=\"Sti\",\"D\",IF(LEFT(B8,3)=\"Alt\",\"D\",\"H\"))","v":"H"},null,null,"TOTAL",{"$f":"J3+J4+J5+J6+J7","v":0},{"$f":"K3+K4+K5+K6+K7","v":0},null,{"$f":"Dati!O10","v":"Valorizzare l'importo"}]
[null,null,null,null,null,"H",null,null,null,null,null,null,{"$f":"Dati!O11","v":"Calcolo di Incasso o Pagamento"}]
[null,null,null,null,null,"H",null,null,{"$f":"Dati!L12","v":"Dettaglio"},{"$f":"Dati!L13","v":"Incassi"},{"$f":"Dati!L14","v":"Pagamenti"},null,{"$f":"Dati!O12","v":"in maniera automatica"}]
[null,null,null,null,null,"H",null,null,{"$f":"Dati!J2","v":"Stipendio"},{"$f":"SUMIFS(E$5:E$61,B$5:B$61,I11,$F$5:$F$61,\"=D\")","v":0},{"$f":"SUMIFS(E$5:E$61,B$5:B$61,I11,$F$5:$F$61,\"=H\")","v":0}]
[null,null,null,null,null,"H",null,null,{"$f":"Dati!J3","v":"Altre Entrate"},{"$f":"SUMIFS(E$5:E$61,B$5:B$61,I12,$F$5:$F$61,\"=D\")","v":0},0,null,{"$f":"Dati!O13","v":"Aggiornamento automatico di"}]
[null,null,null,null,null,"H",null,null,{"$f":"Dati!J4","v":"Tasse"},0,{"$f":"SUMIFS(E$5:E$61,B$5:B$61,I13,$F$5:$F$61,\"=H\")","v":0},null,{"$f":"Dati!O14","v":"Sommario e Dettaglio"}]
[null,null,null,null,null,"H",null,null,{"$f":"Dati!J5","v":"Spese Casa"},0,{"$f":"SUMIFS(E$5:E$61,B$5:B$61,I14,$F$5:$F$61,\"=H\")","v":0}]
[null,null,null,null,null,"H",null,null,{"$f":"Dati!J6","v":"Luce e Gas"},0,0,null,{"$f":"Dati!O15","v":"Al termine delle operazioni,"}]
[null,null,null,null,null,"H",null,null,{"$f":"Dati!J7","v":"Supermercato"},0,0,null,{"$f":"Dati!O16","v":"premere"},{"$f":"Dati!P16","v":"TORNARE"}]
[null,null,null,null,null,"H",null,null,{"$f":"Dati!J8","v":"Telefonia"},0,0,null,{"$f":"Dati!O17","v":"e si ritorna al foglio Start"}]
[null,null,null,null,null,"H",null,null,{"$f":"Dati!J9","v":"Elettronica"},0,0]
[null,null,null,null,null,"H",null,null,{"$f":"Dati!J10","v":"Auto Moto"},0,0]
[null,null,null,null,null,"H",null,null,{"$f":"Dati!J11","v":"Assicurazioni"},0,0]
[null,null,null,null,null,"H",null,null,{"$f":"Dati!J12","v":"Manutenzione"},0,0]
[null,null,null,null,null,"H",null,null,{"$f":"Dati!J13","v":"Medicinali"},0,0]
[null,null,null,null,null,"H",null,null,{"$f":"Dati!J14","v":"Ristoranti"},0,0]
[null,null,null,null,null,"H",null,null,{"$f":"Dati!J15","v":"Abbigliamento"},0,0]
[null,null,null,null,null,"H",null,null,{"$f":"Dati!J16","v":"Istruzione"},0,0]
[null,null,null,null,null,"H",null,null,{"$f":"Dati!J17","v":"Divertimento"},0,0]
[null,null,null,null,null,"H",null,null,{"$f":"Dati!J18","v":"Vacanze"},0,0]
[null,null,null,null,null,"H",null,null,{"$f":"Dati!J19","v":"Spese Varie"},0,0]
[null,null,null,null,null,"H",null,null,"TOTAL",{"$f":"J11+J12","v":0},{"$f":"SUM(K13:K28)","v":0}]
[null,null,null,null,null,"H"]
[null,null,null,null,null,"H"]
[null,null,null,null,null,"H"]
[null,null,null,null,null,"H"]
[null,null,null,null,null,"H"]
[null,null,null,null,null,"H"]
[null,null,null,null,null,"H"]
[null,null,null,null,null,"H"]
[null,null,null,null,null,"H"]
[null,null,null,null,null,"H"]
[null,null,null,null,null,"H"]
[null,null,null,null,null,"H"]
[null,null,null,null,null,"H"]
[null,null,null,null,null,"H"]
[null,null,null,null,null,"H"]
[null,null,null,null,null,"H"]
[null,null,null,null,null,"H"]
[null,null,null,null,null,"H"]
[null,null,null,null,null,"H"]
[null,null,null,null,null,"H"]
[null,null,null,null,null,"H"]
[null,null,null,null,null,"H"]
[null,null,null,null,null,"H"]
[null,null,null,null,null,"H"]
[null,null,null,null,null,"H"]
[null,null,null,null,null,"H"]
[null,null,null,null,null,"H"]
[null,null,null,null,null,"H"]
[null,null,null,null,null,"H"]
[null,null,null,null,null,"H"]
[null,null,null,null,null,"H"]
[null,null,null,null,null,"H"]

{"sheet":"M11","index":11,"n_rows":61,"n_cols":14,"rows_kept":61,"cut":false,"hidden":false,"merged":[[2,0,3,0],[2,2,3,2],[2,3,3,3],[2,1,3,1],[2,4,3,4]]}
[null,{"$f":"Dati!L2","v":"Operazioni di incasso e pagamento effettuate nel mese di:"},null,{"$f":"Dati!B12","v":"Novembre"}]
[null,null,null,null,null,null,null,null,{"$f":"Dati!L11","v":"Sommario"},{"$f":"Dati!L13","v":"Incassi"},{"$f":"Dati!L14","v":"Pagamenti"},null,{"$f":"Dati!O4","v":"Info"}]
[{"$f":"Dati!L5","v":"Giorno"},{"$f":"Dati!L6","v":"Tipo Operazione"},{"$f":"Dati!L7","v":"Descrizione Operazione"},{"$f":"Dati!L8","v":"Metodo"},{"$f":"Dati!L9","v":"Importo"},null,null,null,{"$f":"Dati!H2","v":"Bancomat"},{"$f":"SUMIFS($E$5:$E$61,$D$5:$D$61,I3,$F$5:$F$61,\"=D\")","v":0},{"$f":"SUMIFS($E$5:$E$61,$D$5:$D$61,I3,$F$5:$F$61,\"=H\")","v":0}]
[null,null,null,null,null,null,null,null,{"$f":"Dati!H3","v":"Contanti"},{"$f":"SUMIFS($E$5:$E$61,$D$5:$D$61,I4,$F$5:$F$61,\"=D\")","v":0},{"$f":"SUMIFS($E$5:$E$61,$D$5:$D$61,I4,$F$5:$F$61,\"=H\")","v":0},null,{"$f":"Dati!O6","v":"Indicare il giorno dell'operazione"}]
[null,null,null,null,null,{"$f":"IF(LEFT(B5,3)=\"Sti\",\"D\",IF(LEFT(B5,3)=\"Alt\",\"D\",\"H\"))","v":"H"},null,null,{"$f":"Dati!H4","v":"CartaCredito"},0,0,null,{"$f":"Dati!O7","v":"Selezionare il Tipo Operazione"}]
[null,null,null,null,null,{"$f":"IF(LEFT(B6,3)=\"Sti\",\"D\",IF(LEFT(B6,3)=\"Alt\",\"D\",\"H\"))","v":"H"},null,null,{"$f":"Dati!H5","v":"Bonifico"},0,0,null,{"$f":"Dati!O8","v":"Valorizzare la descrizione"}]
[null,null,null,null,null,{"$f":"IF(LEFT(B7,3)=\"Sti\",\"D\",IF(LEFT(B7,3)=\"Alt\",\"D\",\"H\"))","v":"H"},null,null,{"$f":"Dati!H6","v":"Vario"},0,0,null,{"$f":"Dati!O9","v":"Selezionare il Metodo"}]
[null,null,null,null,null,{"$f":"IF(LEFT(B8,3)=\"Sti\",\"D\",IF(LEFT(B8,3)=\"Alt\",\"D\",\"H\"))","v":"H"},null,null,"TOTAL",{"$f":"J3+J4+J5+J6+J7","v":0},{"$f":"K3+K4+K5+K6+K7","v":0},null,{"$f":"Dati!O10","v":"Valorizzare l'importo"}]
[null,null,null,null,null,"H",null,null,null,null,null,null,{"$f":"Dati!O11","v":"Calcolo di Incasso o Pagamento"}]
[null,null,null,null,null,"H",null,null,{"$f":"Dati!L12","v":"Dettaglio"},{"$f":"Dati!L13","v":"Incassi"},{"$f":"Dati!L14","v":"Pagamenti"},null,{"$f":"Dati!O12","v":"in maniera automatica"}]
[null,null,null,null,null,"H",null,null,{"$f":"Dati!J2","v":"Stipendio"},{"$f":"SUMIFS(E$5:E$61,B$5:B$61,I11,$F$5:$F$61,\"=D\")","v":0},{"$f":"SUMIFS(E$5:E$61,B$5:B$61,I11,$F$5:$F$61,\"=H\")","v":0}]
[null,null,null,null,null,"H",null,null,{"$f":"Dati!J3","v":"Altre Entrate"},{"$f":"SUMIFS(E$5:E$61,B$5:B$61,I12,$F$5:$F$61,\"=D\")","v":0},0,null,{"$f":"Dati!O13","v":"Aggiornamento automatico di"}]
[null,null,null,null,null,"H",null,null,{"$f":"Dati!J4","v":"Tasse"},0,{"$f":"SUMIFS(E$5:E$61,B$5:B$61,I13,$F$5:$F$61,\"=H\")","v":0},null,{"$f":"Dati!O14","v":"Sommario e Dettaglio"}]
[null,null,null,null,null,"H",null,null,{"$f":"Dati!J5","v":"Spese Casa"},0,{"$f":"SUMIFS(E$5:E$61,B$5:B$61,I14,$F$5:$F$61,\"=H\")","v":0}]
[null,null,null,null,null,"H",null,null,{"$f":"Dati!J6","v":"Luce e Gas"},0,0,null,{"$f":"Dati!O15","v":"Al termine delle operazioni,"}]
[null,null,null,null,null,"H",null,null,{"$f":"Dati!J7","v":"Supermercato"},0,0,null,{"$f":"Dati!O16","v":"premere"},{"$f":"Dati!P16","v":"TORNARE"}]
[null,null,null,null,null,"H",null,null,{"$f":"Dati!J8","v":"Telefonia"},0,0,null,{"$f":"Dati!O17","v":"e si ritorna al foglio Start"}]
[null,null,null,null,null,"H",null,null,{"$f":"Dati!J9","v":"Elettronica"},0,0]
[null,null,null,null,null,"H",null,null,{"$f":"Dati!J10","v":"Auto Moto"},0,0]
[null,null,null,null,null,"H",null,null,{"$f":"Dati!J11","v":"Assicurazioni"},0,0]
[null,null,null,null,null,"H",null,null,{"$f":"Dati!J12","v":"Manutenzione"},0,0]
[null,null,null,null,null,"H",null,null,{"$f":"Dati!J13","v":"Medicinali"},0,0]
[null,null,null,null,null,"H",null,null,{"$f":"Dati!J14","v":"Ristoranti"},0,0]
[null,null,null,null,null,"H",null,null,{"$f":"Dati!J15","v":"Abbigliamento"},0,0]
[null,null,null,null,null,"H",null,null,{"$f":"Dati!J16","v":"Istruzione"},0,0]
[null,null,null,null,null,"H",null,null,{"$f":"Dati!J17","v":"Divertimento"},0,0]
[null,null,null,null,null,"H",null,null,{"$f":"Dati!J18","v":"Vacanze"},0,0]
[null,null,null,null,null,"H",null,null,{"$f":"Dati!J19","v":"Spese Varie"},0,0]
[null,null,null,null,null,"H",null,null,"TOTAL",{"$f":"J11+J12","v":0},{"$f":"SUM(K13:K28)","v":0}]
[null,null,null,null,null,"H"]
[null,null,null,null,null,"H"]
[null,null,null,null,null,"H"]
[null,null,null,null,null,"H"]
[null,null,null,null,null,"H"]
[null,null,null,null,null,"H"]
[null,null,null,null,null,"H"]
[null,null,null,null,null,"H"]
[null,null,null,null,null,"H"]
[null,null,null,null,null,"H"]
[null,null,null,null,null,"H"]
[null,null,null,null,null,"H"]
[null,null,null,null,null,"H"]
[null,null,null,null,null,"H"]
[null,null,null,null,null,"H"]
[null,null,null,null,null,"H"]
[null,null,null,null,null,"H"]
[null,null,null,null,null,"H"]
[null,null,null,null,null,"H"]
[null,null,null,null,null,"H"]
[null,null,null,null,null,"H"]
[null,null,null,null,null,"H"]
[null,null,null,null,null,"H"]
[null,null,null,null,null,"H"]
[null,null,null,null,null,"H"]
[null,null,null,null,null,"H"]
[null,null,null,null,null,"H"]
[null,null,null,null,null,"H"]
[null,null,null,null,null,"H"]
[null,null,null,null,null,"H"]
[null,null,null,null,null,"H"]
[null,null,null,null,null,"H"]

{"sheet":"M12","index":12,"n_rows":61,"n_cols":14,"rows_kept":61,"cut":false,"hidden":false,"merged":[[2,0,3,0],[2,2,3,2],[2,3,3,3],[2,1,3,1],[2,4,3,4]]}
[null,{"$f":"Dati!L2","v":"Operazioni di incasso e pagamento effettuate nel mese di:"},null,{"$f":"Dati!B13","v":"Dicembre"}]
[null,null,null,null,null,null,null,null,{"$f":"Dati!L11","v":"Sommario"},{"$f":"Dati!L13","v":"Incassi"},{"$f":"Dati!L14","v":"Pagamenti"},null,{"$f":"Dati!O4","v":"Info"}]
[{"$f":"Dati!L5","v":"Giorno"},{"$f":"Dati!L6","v":"Tipo Operazione"},{"$f":"Dati!L7","v":"Descrizione Operazione"},{"$f":"Dati!L8","v":"Metodo"},{"$f":"Dati!L9","v":"Importo"},null,null,null,{"$f":"Dati!H2","v":"Bancomat"},{"$f":"SUMIFS($E$5:$E$61,$D$5:$D$61,I3,$F$5:$F$61,\"=D\")","v":0},{"$f":"SUMIFS($E$5:$E$61,$D$5:$D$61,I3,$F$5:$F$61,\"=H\")","v":0}]
[null,null,null,null,null,null,null,null,{"$f":"Dati!H3","v":"Contanti"},{"$f":"SUMIFS($E$5:$E$61,$D$5:$D$61,I4,$F$5:$F$61,\"=D\")","v":0},{"$f":"SUMIFS($E$5:$E$61,$D$5:$D$61,I4,$F$5:$F$61,\"=H\")","v":0},null,{"$f":"Dati!O6","v":"Indicare il giorno dell'operazione"}]
[null,null,null,null,null,{"$f":"IF(LEFT(B5,3)=\"Sti\",\"D\",IF(LEFT(B5,3)=\"Alt\",\"D\",\"H\"))","v":"H"},null,null,{"$f":"Dati!H4","v":"CartaCredito"},0,0,null,{"$f":"Dati!O7","v":"Selezionare il Tipo Operazione"}]
[null,null,null,null,null,{"$f":"IF(LEFT(B6,3)=\"Sti\",\"D\",IF(LEFT(B6,3)=\"Alt\",\"D\",\"H\"))","v":"H"},null,null,{"$f":"Dati!H5","v":"Bonifico"},0,0,null,{"$f":"Dati!O8","v":"Valorizzare la descrizione"}]
[null,null,null,null,null,{"$f":"IF(LEFT(B7,3)=\"Sti\",\"D\",IF(LEFT(B7,3)=\"Alt\",\"D\",\"H\"))","v":"H"},null,null,{"$f":"Dati!H6","v":"Vario"},0,0,null,{"$f":"Dati!O9","v":"Selezionare il Metodo"}]
[null,null,null,null,null,{"$f":"IF(LEFT(B8,3)=\"Sti\",\"D\",IF(LEFT(B8,3)=\"Alt\",\"D\",\"H\"))","v":"H"},null,null,"TOTAL",{"$f":"J3+J4+J5+J6+J7","v":0},{"$f":"K3+K4+K5+K6+K7","v":0},null,{"$f":"Dati!O10","v":"Valorizzare l'importo"}]
[null,null,null,null,null,"H",null,null,null,null,null,null,{"$f":"Dati!O11","v":"Calcolo di Incasso o Pagamento"}]
[null,null,null,null,null,"H",null,null,{"$f":"Dati!L12","v":"Dettaglio"},{"$f":"Dati!L13","v":"Incassi"},{"$f":"Dati!L14","v":"Pagamenti"},null,{"$f":"Dati!O12","v":"in maniera automatica"}]
[null,null,null,null,null,"H",null,null,{"$f":"Dati!J2","v":"Stipendio"},{"$f":"SUMIFS(E$5:E$61,B$5:B$61,I11,$F$5:$F$61,\"=D\")","v":0},{"$f":"SUMIFS(E$5:E$61,B$5:B$61,I11,$F$5:$F$61,\"=H\")","v":0}]
[null,null,null,null,null,"H",null,null,{"$f":"Dati!J3","v":"Altre Entrate"},{"$f":"SUMIFS(E$5:E$61,B$5:B$61,I12,$F$5:$F$61,\"=D\")","v":0},0,null,{"$f":"Dati!O13","v":"Aggiornamento automatico di"}]
[null,null,null,null,null,"H",null,null,{"$f":"Dati!J4","v":"Tasse"},0,{"$f":"SUMIFS(E$5:E$61,B$5:B$61,I13,$F$5:$F$61,\"=H\")","v":0},null,{"$f":"Dati!O14","v":"Sommario e Dettaglio"}]
[null,null,null,null,null,"H",null,null,{"$f":"Dati!J5","v":"Spese Casa"},0,{"$f":"SUMIFS(E$5:E$61,B$5:B$61,I14,$F$5:$F$61,\"=H\")","v":0}]
[null,null,null,null,null,"H",null,null,{"$f":"Dati!J6","v":"Luce e Gas"},0,0,null,{"$f":"Dati!O15","v":"Al termine delle operazioni,"}]
[null,null,null,null,null,"H",null,null,{"$f":"Dati!J7","v":"Supermercato"},0,0,null,{"$f":"Dati!O16","v":"premere"},{"$f":"Dati!P16","v":"TORNARE"}]
[null,null,null,null,null,"H",null,null,{"$f":"Dati!J8","v":"Telefonia"},0,0,null,{"$f":"Dati!O17","v":"e si ritorna al foglio Start"}]
[null,null,null,null,null,"H",null,null,{"$f":"Dati!J9","v":"Elettronica"},0,0]
[null,null,null,null,null,"H",null,null,{"$f":"Dati!J10","v":"Auto Moto"},0,0]
[null,null,null,null,null,"H",null,null,{"$f":"Dati!J11","v":"Assicurazioni"},0,0]
[null,null,null,null,null,"H",null,null,{"$f":"Dati!J12","v":"Manutenzione"},0,0]
[null,null,null,null,null,"H",null,null,{"$f":"Dati!J13","v":"Medicinali"},0,0]
[null,null,null,null,null,"H",null,null,{"$f":"Dati!J14","v":"Ristoranti"},0,0]
[null,null,null,null,null,"H",null,null,{"$f":"Dati!J15","v":"Abbigliamento"},0,0]
[null,null,null,null,null,"H",null,null,{"$f":"Dati!J16","v":"Istruzione"},0,0]
[null,null,null,null,null,"H",null,null,{"$f":"Dati!J17","v":"Divertimento"},0,0]
[null,null,null,null,null,"H",null,null,{"$f":"Dati!J18","v":"Vacanze"},0,0]
[null,null,null,null,null,"H",null,null,{"$f":"Dati!J19","v":"Spese Varie"},0,0]
[null,null,null,null,null,"H",null,null,"TOTAL",{"$f":"J11+J12","v":0},{"$f":"SUM(K13:K28)","v":0}]
[null,null,null,null,null,"H"]
[null,null,null,null,null,"H"]
[null,null,null,null,null,"H"]
[null,null,null,null,null,"H"]
[null,null,null,null,null,"H"]
[null,null,null,null,null,"H"]
[null,null,null,null,null,"H"]
[null,null,null,null,null,"H"]
[null,null,null,null,null,"H"]
[null,null,null,null,null,"H"]
[null,null,null,null,null,"H"]
[null,null,null,null,null,"H"]
[null,null,null,null,null,"H"]
[null,null,null,null,null,"H"]
[null,null,null,null,null,"H"]
[null,null,null,null,null,"H"]
[null,null,null,null,null,"H"]
[null,null,null,null,null,"H"]
[null,null,null,null,null,"H"]
[null,null,null,null,null,"H"]
[null,null,null,null,null,"H"]
[null,null,null,null,null,"H"]
[null,null,null,null,null,"H"]
[null,null,null,null,null,"H"]
[null,null,null,null,null,"H"]
[null,null,null,null,null,"H"]
[null,null,null,null,null,"H"]
[null,null,null,null,null,"H"]
[null,null,null,null,null,"H"]
[null,null,null,null,null,"H"]
[null,null,null,null,null,"H"]
[null,null,null,null,null,"H"]

{"sheet":"Dati","index":13,"n_rows":19,"n_cols":16,"rows_kept":19,"cut":false,"hidden":false,"merged":[]}
["Mesi",null,null,"Anni","Bisesto","Attivo",null,"Modo",null,"Tipo","S","Operatività"]
[1,"Gennaio",null,2016,1,0,null,"Bancomat",null,"Stipendio","D","Operazioni di incasso e pagamento effettuate nel mese di:"]
[2,"Febbraio",null,2017,0,0,null,"Contanti",null,"Altre Entrate","D"]
[3,"Marzo",null,2018,0,1,null,"CartaCredito",null,"Tasse","H","Intestazione",null,null,"Info"]
[4,"Aprile",null,2019,0,0,null,"Bonifico",null,"Spese Casa","H","Giorno"]
[5,"Maggio",null,2020,1,0,null,"Vario",null,"Luce e Gas","H","Tipo Operazione",null,null,"Indicare il giorno dell'operazione"]
[6,"Giugno",null,2021,0,0,null,null,null,"Supermercato","H","Descrizione Operazione",null,null,"Selezionare il Tipo Operazione"]
[7,"Luglio",null,2022,0,0,null,null,null,"Telefonia","H","Metodo",null,null,"Valorizzare la descrizione"]
[8,"Agosto",null,2023,0,0,null,null,null,"Elettronica","H","Importo",null,null,"Selezionare il Metodo"]
[9,"Settembre",null,2024,1,0,null,null,null,"Auto Moto","H",null,null,null,"Valorizzare l'importo"]
[10,"Ottobre",null,2025,0,0,null,null,null,"Assicurazioni","H","Sommario",null,null,"Calcolo di Incasso o Pagamento"]
[11,"Novembre",null,2026,0,0,null,null,null,"Manutenzione","H","Dettaglio",null,null,"in maniera automatica"]
[12,"Dicembre",null,2027,0,0,null,null,null,"Medicinali","H","Incassi",null,null,"Aggiornamento automatico di"]
[null,null,null,null,null,null,null,null,null,"Ristoranti","H","Pagamenti",null,null,"Sommario e Dettaglio"]
[null,null,null,null,null,null,null,null,null,"Abbigliamento","H",null,null,null,"Al termine delle operazioni,"]
[null,null,null,null,null,null,null,null,null,"Istruzione","H",null,null,null,"premere","TORNARE"]
[null,null,null,null,null,null,null,null,null,"Divertimento","H",null,null,null,"e si ritorna al foglio Start"]
[null,null,null,null,null,null,null,null,null,"Vacanze","H"]
[null,null,null,null,null,null,null,null,null,"Spese Varie","H"]